Workbook

Sheet Introduction
B10: Introduction
B11: Overview | C11: The goal of the Screening & Sizing Tools is to help identify potential opportunities to reallocate resources to address the district's strategic priorities. Together, they are meant to be a "quick and simple" assessment of a long list of potential opportunities. The Screening Tools guide districts to answer a few straightforward questions that do not require data collection. The Screening Tools can help districts consider opportunities that at first glance may not seem to have high potential, but are in fact worthy of further investigation. After completing the Screening Tools for all opportunities, you should complete the Sizing Tools for the opportunities with the highest total points. The goal of the Sizing Tools is to roughly estimate the financial impact of high-potential opportunities that were identified using the Screening Tools. They can also help to create momentum for deeper analysis. The Sizing Tools can identify opportunities that are worth further analysis, but are not intended to replace a "deep dive." More rigorous analysis is required to accurately size the potential financial impact of the most promising opportunities. There are two main types of resource reallocation opportunities that the Screening and Sizing Tools can help identify: 1. Can the district free up funds for its strategic priorities? 2. Can the district increase the impact of current spending at little or no additional cost, thus reducing the need to free up funds for priorities? Some opportunities are a combination of both. The Screening and Sizing Tools will help the district consider a wide range of opportunities in both of these categories.
B12: What will you get out of this activity? | C12: An understanding of which three to six potential opportunities are worthy of a more detailed, rigorous analysis, because they have the highest potential financial impact.
B13: When should you do this activity? | C13: The Screening and Sizing Tools are intended to identify opportunities that have the potential to free up funds to address the district's strategic priorities. Districts should use these Screening and Sizing Tools after identifying the cost of their priorities, so that they know in advance the target they are aiming to achieve.
B14: How long will it take to complete? | C14: The Screening Tools are intended to be completed in a relatively short period of time. It should take districts approximately half a day to complete all 31 Screening Tools, provided the right people are in the room. Each Sizing Tool may take two to four hours to complete, and will require collecting data that is easily accessible for most districts.
B15: Who should be involved? | C15: A wide group of district leaders should work to complete the Screening Tools together or as smaller content-specific teams. Teams should include all relevant department heads and well as their "second-in-commands," who have a detailed knowledge of current practices. For example, a Screening Tool that aims to assess, "Can the district increase state and federal funding by maximizing free and reduced-priced meals enrollment?" would likely require the head of federal programs, the Title I point person, and the head of food services to help complete the tool. The Chief Financial Officer should coordinate the use of the Sizing Tools, seeking input and data from knowledgeable parties. For example, a Sizing Tool that aims to estimate the opportunity "Can the district increase state and federal funding by maximizing free and reduced-priced meals enrollment?" would likely require the Chief Financial Officer to work with the head of federal programs and the "second-in-command" to gather the needed data and complete the tool.
B16: Notes | C16: After completing the Screening Tools, districts will have a score for each opportunity. The score indicates whether or not districts should consider exploring the opportunity further using the Sizing Tools and other analyses. It is not worth completing the Sizing Tool for any opportunity that scores fewer than 50 points. Sizing up to 15 of the highest-scoring opportunities should be ample work to identify the highest-leverage opportunities. Screening Tools Score Key 0-49 points: Not worth exploring 50-74 points: Might be worth exploring further 75-199 points: Worth exploring - small potential opportunity 200-299 points: Worth exploring - significant potential opportunity 300-399 points: Worth exploring - large potential opportunity 400 + points: Worth exploring - very large potential opportunity Some of the opportunities include benchmarking analyses. In most cases, the benchmarking is based on large districts (over 25,000 students) with high poverty. A deeper dive should include benchmarking analysis tailored to districts' particular characteristics and locations. Additionally, the estimates derived from the Sizing Tools do not reflect collective bargaining agreements, state regulations, state and local policies and procedures, or other district-specific factors that may limit the potential financial impact of the opportunity. These factors should be considered in a deep dive.

Sheet Instructions
B4: Before completing this excel tool, be sure you have reviewed the Guide: Identifying Top Savings Options
B9: Familiarize yourself with the list of opportunities for potential savings on the tab entitled "A. Opportunities List"
B23: Complete the screening tools for all 31 potential opportunities. See the tab entitled "B. Screening Tools Introduction" for
B24: an overview of the screening tools
B38: Review the "C. Screening Summary" tab to view your points total and the relative size of each opportunity. Identify the
B39: 10-15 highest-scoring opportunities, based on the screening tools. These have the highest potential to shift funds to your
B40: strategic priorities. Select these opportunities in order to use an additional Excel tab to roughly estimate the potential
B41: financial impact of the opportunity the potential size of the opportunity.
B54: Complete the sizing tools for the 10-15 opportunities for which you have decided to roughly estimate the potential
B55: financial impact. See the tab entitled "D. Sizing Tools Introduction" for an overview of the sizing tools.
B73: Use the tools, resources, examples, savings tactics, and case studies on the website to conduct deep dive analyses for three to
B74: six of your identified opportunities that may have the biggest impact based on your work with the screening and sizing tools.

Sheet A. Opportunities List
C1: List of Savings Opportunities
A3: For summing | C3: Category | D3: # | E3: Opportunity
A4: 1 | C4: Reducing operational costs | D4: 1 | E4: Can the district free up funds from general education transportation?
A5: 1 | D5: 2 | E5: Can the district free up funds from energy expenditures?
A6: 1 | D6: 3 | E6: Can the district free up funds from maintenance services?
A7: 1 | D7: 4 | E7: Can the district free up funds from custodial services?
A8: 1 | D8: 5 | E8: Can the district free up funds from food services?
A9: 1 | D9: 6 | E9: Can the district free up funds from classroom and other instructional technology?
A10: 1 | C10: Rethinking service delivery models for students who struggle | D10: 7 | E10: Can the district address mild special needs differently?
A11: 1 | D11: 8 | E11: Can the district free up funds from paraprofessional positions?
A12: 1 | D12: 9 | E12: Can the district free up funds by increasing the impact of intervention teaching positions?
A13: 1 | D13: 10 | E13: Can the district free up funds from special education teaching positions?
A14: 1 | D14: 11 | E14: Can the district free up funds from speech and language therapist positions?
A15: 1 | D15: 12 | E15: Can the district increase the impact of Title I spending?
A16: 1 | D16: 13 | E16: Can the district free up funds by reducing reliance on out-of-district special education placements?
A17: 1 | D17: 14 | E17: Can the district free up funds by reducing its reliance on alternative schools for students with behavioral challenges?
A18: 1 | C18: Maximizing revenue | D18: 15 | E18: Can the district increase state and federal funding by maximizing free and reduced-priced meals enrollment?
A19: 1 | D19: 16 | E19: Can the district increase federal Medicaid reimbursement for health-related student services?
A20: 1 | C20: Boosting the impact and cost-effectiveness of professional development for teachers | D20: 17 | E20: Can the district free up funds from professional development expenditures?
A21: 1 | D21: 18 | E21: Can the district provide more professional development opportunities for core teachers at little or no additional cost?
A22: 1 | D22: 19 | E22: Can the district increase the impact of the coaching model at little to no additional cost?
A23: 1 | D23: 20 | E23: Can the district free up funds from instructional coaching positions?
A24: 1 | C24: Examining staffing levels of non-instructional staff | D24: 21 | E24: Can the district free up funds from central office spending?
A25: 1 | D25: 22 | E25: Can the district free up funds from school-based administrator positions and/or increase the impact of existing positions?
A26: 1 | D26: 23 | E26: Can the district free up funds from clerical support positions?
A27: 1 | D27: 24 | E27: Can the district free up funds from library/media specialist positions and/or increase the impact of existing positions?
A28: 1 | D28: 25 | E28: Can the district free up funds from guidance counselor positions?
A29: 1 | C29: Using instructional time more cost-effectively | D29: 26 | E29: Can the district free up funds associated with teacher absences?
A30: 1 | D30: 27 | E30: Can the district free up funds from extended school day and/or year programs?
A31: 1 | D31: 28 | E31: Can the district free up funds from blended learning and/or online classes and/or increase the impact at little or no additional cost?
A32: 1 | C32: Managing class size | D32: 29 | E32: Can the district free up funds by managing class sizes differently at the elementary schools?
A33: 1 | D33: 30 | E33: Can the district free up funds by managing class sizes differently at the middle schools?
A34: 1 | D34: 31 | E34: Can the district free up funds by managing class sizes differently at the high schools?

Sheet B. Screening Tools Introduction
B10: Introduction
B11: Overview | C11: The goal of the Screening Tools is to help identify potential opportunities to reallocate resources to address the district's strategic priorities. Together, they are meant to be a "quick and simple" assessment of a long list of potential opportunities. The Screening Tools guide districts to answer a few, straightforward questions that do not require data collection. The Screening Tools can help districts consider opportunities that at first glance may not have seemed to have a high potential, but are in fact worthy of further investigation. There are two main types of resource reallocation opportunities that the Screening Tools can help identify: 1. Can the district free up funds for its strategic priorities? 2. Can the district increase the impact of current spending at little or no additional cost, thus reducing the need to free up funds for priorities? Some opportunities are a combination of both. The Screening Tools will help the district consider a wide range of opportunities in both of these categories.
B12: What will you get out of this activity? | C12: An understanding of which opportunities may be relevant to the districts and are worthy of further consideration and analysis.
B13: When should you do this activity? | C13: The Screening Tools are intended to identify opportunities that have the potential to free up funds to address the district's strategic priorities. Districts should use these Screening Tools after identifying the cost of their priorities, so that they know in advance the target they are aiming to achieve.
B14: How long will it take to complete? | C14: The Screening Tools are intended to be completed in a relatively short period of time. It should take districts approximately half a day to complete all 31 Screening Tools, provided the right people are in the room.
B15: Who should be involved? | C15: A wide group of district leaders should work to complete the Screening Tools together or as smaller content-specific teams. Teams should include all relevant department heads and well as their "second-in-commands," who have a detailed knowledge of current practices. For example, a Screening Tool that aims to assess, "Can the district increase state and federal funding by maximizing free and reduced-priced meals enrollment?" would likely require the head of federal programs, the Title I point person, and the head of food services to help complete the tool.
B16: Note on Scoring | C16: After completing the Screening Tools, districts will have a score for each opportunity. The score indicates whether or not districts should consider exploring the opportunity further using the Sizing Tools and other analyses. It is not worth completing the Sizing Tool for any opportunity that scores fewer than 50 points. Sizing up to 15 of the highest-scoring opportunities should be ample work to identify the highest-leverage opportunities. Screening Tools Score Key 0-49 points: Not worth exploring 50-74 points: Might be worth exploring further 75-199 points: Worth exploring - small potential opportunity 200-299 points: Worth exploring - significant potential opportunity 300-399 points: Worth exploring - large potential opportunity 400 + points: Worth exploring - very large potential opportunity

Sheet B1. Transportation
B2: SCREENING TOOL | E2: 1
B3: Can the district free up funds from general education transportation?
B4: Providing transportation for students is often very costly. Some districts have reduced spending on transportation by switching to lower-cost providers, making routing more efficient, and/or better utilizing their fleet of buses. Note: This opportunity includes general education transportation, and does not include special education transportation
B5: Instructions: Answer the questions below about the district. For each one, there is a drop-down menu in the gray-shaded cell to its right. Please select the score that corresponds to the points for your answer choice. The scores will automatically sum at the bottom to give your total points.
B7: Question | C7: Answers | D7: Points | E7: Score
A8: 1 | B8: Does the district transport students to charter schools and/or parochial schools? | C8: Yes, 10% or more of all students | D8: 20
C9: No, or less than 10% of all students | D9: 0
A10: 2 | B10: Does the district transport many general education students in grades 7-12 in school buses? | C10: Yes | D10: 30
C11: No | D11: 0
A12: 3 | B12: Does the district transport general education students who are not mandated under state law? | C12: Yes | D12: 30
C13: No | D13: 0
A14: 4 | B14: Does the district utilize routing software to create new bus routes each year? | C14: Yes | D14: 0
C15: No | D15: 50
A16: 5 | B16: Has the district created new school assignment policies for students in the past five years? | C16: Yes | D16: 20
C17: No | D17: 0
A18: 6 | B18: Has the district changed transportation providers in the past 5 years? | C18: Yes | D18: 0
C19: No | D19: 20
A20: 7 | B20: Has spending on transportation increased in the past 3 years? | C20: Yes, in proportion to the overall budget | D20: 0
C21: Yes, in greater proportion than the overall budget | D21: 40
C22: No, or in smaller proportion than the overall budget | D22: 0
C23: Do not know | D23: 40
A24: 8 | B24: Do most buses have monitors? | C24: Yes | D24: 20
C25: No | D25: 0
A26: 9 | B26: Can the district easily and accurately produce transportation reports that include duration of each run and the number of students on each run in the morning and afternoon on any given day and are these reports used to adjust routes or stops? | C26: Yes | D26: 0
C27: No | D27: 30
A28: 10 | B28: Do most buses make more than one run in the morning and more than one run in the afternoon? | C28: Yes | D28: 0
C29: No | D29: 50
C30: Do not know | D30: 50
B31: Total points | E31: =SUM(E8:E30) -> 0

Sheet B2. Energy
B1: SCREENING TOOL | E1: 2
B2: Can the district free up funds from energy expenditures?
B3: As with any non-instructional expenditure, a reduction in spending on energy can enable a district to shift funds to other activities that can have a greater impact on student learning. Energy costs often represent a significant part of the operating budget, especially for older school buildings and systems. Furthermore, principals rarely have an incentive to reduce energy spending even though these are building-based costs that can be managed. Some districts have reduced energy costs by upgrading older systems, managing purchasing differently, and/or providing incentives to principals to conserve energy. Note: This opportunity includes all energy expenditures, including heating, cooling, gas, and electricity use.
B4: Instructions: Answer the questions below about the district. For each one, there is a drop-down menu in the gray-shaded cell to its right. Please select the score that corresponds to the points for your answer choice. The scores will automatically sum at the bottom to give your total points.
B6: Question | C6: Answers | D6: Points | E6: Score
A7: 1 | B7: How many months each year do schools typically require heating? | C7: 8 or more | D7: 20
C8: 6-8 | D8: 10
C9: 3-5 | D9: 5
C10: Fewer than 3 | D10: 0
A11: 2 | B11: How many months each year do schools typically require air conditioning? | C11: 8 or more | D11: 20
C12: 6-8 | D12: 10
C13: 3-5 | D13: 5
C14: Fewer than 3 | D14: 0
A15: 3 | B15: Roughly how many school buildings are 50 or more years old? | C15: Most | D15: 50
C16: Some | D16: 30
C17: Few, if any | D17: 0
A18: 4 | B18: Approximately how many older heating or cooling systems have been replaced in the past twenty years? | C18: More than half | D18: 0
C19: Less than half | D19: 20
C20: None | D20: 30
C21: Do not know | D21: 30
A22: 5 | B22: Are there incentives in place for principals to reduce energy costs? | C22: Yes | D22: 0
C23: No | D23: 50
A24: 6 | B24: In the past ten years, has the district had a comprehensive energy audit and implemented most of its recommendations? | C24: Yes | D24: 0
C25: No | D25: 50
A26: 7 | B26: In the past ten years, has the district investigated performance contracts with energy providers or auditors to reduce energy use in exchange for a percentage of the savings? | C26: Yes | D26: 0
C27: No | D27: 10
A28: 8 | B28: In the past five years, has the district investigated alternative ways to purchase energy, including cooperative purchasing, hedging, and/or entering long-term purchasing contracts? | C28: Yes | D28: 0
C29: No | D29: 50
D30: Total points | E30: =SUM(E7:E29) -> 0

Sheet B3. Maintenance
B1: SCREENING TOOL | E1: 3
B2: Can the district free up funds from maintenance services?
B3: Maintenance services are essential to a welcoming and positive school environment, but improved management may allow districts to free up funds to address their strategic priorities. Districts that have reduced spending on school maintenance services have tightly managed services in proportion to enrollment and need, closely monitored overtime, and/or regularly tracked key performance indicators.
B4: Instructions: Answer the questions below about the district. For each one, there is a drop-down menu in the gray-shaded cell to its right. Please select the score that corresponds to the points for your answer choice. The scores will automatically sum at the bottom to give your total points.
B5: Question | C5: Answers | D5: Points | E5: Score
A6: 1 | B6: Has enrollment decreased in the past five years? | C6: Yes, by greater than 5% points | D6: 40
C7: Yes, by between 2% points and 5% points | D7: 20
C8: No, or by less than 2% | D8: 0
A9: 2 | B9: Has a significant portion of older school buildings been replaced or renovated over the past five years? | C9: Yes | D9: 0
C10: No | D10: 30
A11: 3 | B11: If the district contracts with maintenance providers, has the district closely reviewed contracts and/or changed vendors in the past five years? | C11: Yes | D11: 0
C12: No | D12: 50
C13: NA - no contracts with vendors | D13: 0
A14: 4 | B14: Can the district easily and accurately produce reports that track maintenance overtime and have these reports been reviewed by district leadership in the past two years? | C14: Yes | D14: 0
C15: No | D15: 40
A16: 5 | B16: Can the district easily and accurately produce reports that track work order completion time and number of outstanding work orders and have these reports been reviewed by district leadership in the past two years? | C16: Yes | D16: 0
C17: No | D17: 40
D18: Total points | E18: =SUM(E6:E17) -> 0

Sheet B4. Custodial
B1: SCREENING TOOL | E1: 4
B2: Can the district free up funds from custodial services?
B3: Custodial services are essential to a welcoming and positive school environment, but improved management may allow districts to free up funds to address other strategic priorities. Districts that have reduced spending on school custodial services have tightly managed services in proportion to enrollment and need, closely monitored overtime pay, tracked key performance indicators, and/or explored lower-cost vendor options.
B4: Instructions: Answer the questions below about the district. For each one, there is a drop-down menu in the gray-shaded cell to its right. Please select the score that corresponds to the points for your answer choice. The scores will automatically sum at the bottom to give your total points.
B5: Question | C5: Answers | D5: Points | E5: Score
A6: 1 | B6: Has enrollment decreased in the past five years? | C6: Yes, by greater than 5% points | D6: 40
C7: Yes, by between 2% points and 5% points | D7: 20
C8: No, or by less than 2% | D8: 0
A9: 2 | B9: If the district subcontracts custodial services, has the district closely reviewed contracts and/or changed vendors in the past five years? | C9: Yes | D9: 0
C10: No | D10: 40
C11: NA - no contracts with vendors | D11: 0
A12: 3 | B12: Do custodians in a given building have overlapping schedules (e.g., two custodial shifts overlap during high-use hours such as lunch, but do not overlap in the early morning and late afternoons, when time can be dedicated to cleaning)? | C12: Often | D12: 0
C13: Sometimes | D13: 20
C14: Rarely, if ever | D14: 30
A15: 4 | B15: Do custodial staffing levels vary based on school size and/or use? | C15: Often | D15: 0
C16: Sometimes | D16: 20
C17: Rarely, if ever | D17: 40
A18: 5 | B18: Are custodians assigned to more than one building? | C18: Often | D18: 0
C19: Sometimes | D19: 10
C20: Rarely, if ever | D20: 20
A21: 6 | B21: Can the district easily and accurately produce reports that track custodial overtime and have these reports been reviewed by district leadership in the last two years? | C21: Yes | D21: 0
C22: No | D22: 30
D23: Total points | E23: =SUM(E6:E22) -> 0

Sheet B5. Food services
B1: SCREENING TOOL | E1: 5
B2: Can the district free up funds from food services?
B3: Food services can be costly if not closely managed. Districts that have reduced spending on food services have increased student participation, closely tracked key performance indicators, and/or explored lower-cost providers who specialize in food services. Some districts have also succeeded in making food services a revenue-generating department.
B4: Instructions: Answer the questions below about the district. For each one, there is a drop-down menu in the gray-shaded cell to its right. Please select the score that corresponds to the points for your answer choice. The scores will automatically sum at the bottom to give your total points.
B5: Question | C5: Answers | D5: Points | E5: Score
A6: 1 | B6: Does the food service program revenue cover all of the program's operating costs? | C6: Almost all of the costs | D6: 0
C7: Most of the costs | D7: 5
C8: Some of the costs | D8: 15
C9: Very little of the costs | D9: 40
C10: Do not know | D10: 40
A11: 2 | B11: Does the revenue from the food service program cover all of the program's capital purchases (e.g., new ovens or lunch tables)? | C11: Yes | D11: 0
C12: No | D12: 20
A13: 3 | B13: If the district contracts with a food service vendor, has the district changed its food service vendor in the past five years? | C13: Yes | D13: 0
C14: No | D14: 20
C15: NA - no contract with a food service vendor | D15: 0
A16: 4 | B16: Has the district changed its food suppliers in the past five years? | C16: Yes, many | D16: 0
C17: Yes, some | D17: 10
C18: No, few if any | D18: 20
C19: Do not know | D19: 20
A20: 5 | B20: Can the district easily and accurately produce reports that track student participation, cost per meal, and profit and loss and have the reports been reviewed by district leadership in the last two years? | C20: Yes | D20: 0
C21: No | D21: 20
A22: 6 | B22: Were any recent changes to healthier food offset by increases in revenue or cost-saving measures? | C22: Yes | D22: 0
C23: No | D23: 20
C24: NA - There have been no recent shifts to healthier food | D24: 0
A25: 7 | B25: Are breakfast and lunch transactions recorded via a point of sale management system, as opposed to a cash register? | C25: Yes | D25: 0
C26: No | D26: 15
A27: 8 | B27: What is the elementary lunch participation rate (the number of lunches served daily divided by the average daily attendance)? | C27: 75% or higher | D27: 0
C28: Between 50% and 74% | D28: 10
C29: Less than 50% | D29: 20
C30: Do not know | D30: 20
A31: 9 | B31: What is the secondary lunch participation rate (the number of lunches served daily divided by the average daily attendance)? | C31: 50% or higher | D31: 0
C32: Between 40% and 49% | D32: 10
C33: Less than 40% | D33: 20
C34: Do not know | D34: 20
D35: Total points | E35: =SUM(E6:E34) -> 0

Sheet B6. IT
B1: SCREENING TOOL | D1: 6
B2: Can the district free up funds from classroom and other instructional technology?
B3: Investments in instructional technology can be critical to districts' strategic priorities, especially as part of personalized learning or intervention services. However, instructional technology purchases can often be very costly and are not always used as intended. Some districts have shifted spending to more effective uses by reducing little-used software, ensuring instructional technology addresses clear student needs, and/or monitoring for effectiveness. Note: For the purposes of this tool, instructional technology refers to all hardware and software devoted to enhancing teaching and learning in and outside the classroom as well as associated maintenance and support costs (e.g., computer labs, remediation and intervention software, computer-based learning programs, online resources used by students, mobile devices for students and teachers, staff time devoted to set up, maintenance, and support of instructional technology tools and software). It does NOT include core infrastructure such as repair/maintenance or Wi-Fi bandwidth, or hardware and software used primarily for administrative purposes such as email, ERP, finance, HR, payroll, or student information systems. It also does not include related professional development costs for either administrative or instructional uses of technology.
B4: Instructions: Answer the questions below about the district. For each one, there is a drop-down menu in the gray-shaded cell to its right. Please select the score that corresponds to the points for your answer choice. The scores will automatically sum at the bottom to give your total points.
B6: Question | C6: Answers | D6: Points | E6: Score
A7: 1 | B7: How often does the district track the usage of instructional technology and discontinue unused technology (e.g. software licenses and "seats," devices)? | C7: At least once per year | D7: 0
C8: Every one to two years | D8: 5
C9: Less frequently than once every two years | D9: 10
C10: Never | D10: 20
A11: 2 | B11: Has the district reduced or eliminated any software or online technology based on student outcomes in the last two years? | C11: Yes | D11: 0
C12: No | D12: 20
A13: 3 | B13: Has the district made changes to hardware usage (e.g. which students have access to devices) based on student outcomes in the last two years? | C13: Yes | D13: 0
C14: No | D14: 20
A15: 4 | B15: Before instructional technology is purchased, is a clear way to measure the usage of the technology in place? | C15: Almost always | D15: 0
C16: Often | D16: 5
C17: Sometimes | D17: 10
C18: Rarely, if ever | D18: 20
A19: 5 | B19: Before instructional technology is purchased, is there a clear understanding of how the technology will impact student learning and support the district's strategic priorities? | C19: Almost always | D19: 0
C20: Often | D20: 5
C21: Sometimes | D21: 10
C22: Rarely, if ever | D22: 20
A23: 6 | B23: Before instructional technology is purchased, is a clear way to measure the impact of the technology in place? | C23: Almost always | D23: 0
C24: Often | D24: 5
C25: Sometimes | D25: 10
C26: Rarely, if ever | D26: 20
A27: 7 | B27: Within its budget allocation, can an individual department or school purchase instructional technology without approval from senior district teaching and learning leadership? | C27: Almost always | D27: 30
C28: Often | D28: 20
C29: Sometimes | D29: 10
C30: Rarely, if ever | D30: 0
A31: 8 | B31: Has the district recently piloted or launched program(s) requiring the use of many laptops, tablets, and/or other devices in the last two years. | C31: Yes, in most schools | D31: 20
C32: Yes, in many schools | D32: 10
C33: Yes, in some schools | D33: 5
C34: In very few if any schools | D34: 0
D35: Total points | E35: =SUM(E7:E34) -> 0

Sheet B7. Mild special needs
B1: SCREENING TOOL | E1: 7
B2: Can the district address mild special needs differently?
B3: Some students with mild-to-moderate disabilities require targeted special education services provided through Individualized Education Plans (IEPs). However, which students have been found eligible for IEPs can vary widely from school-to-school due to unclear or inconsistent eligibility criteria. Furthermore, in some cases, students who are referred for special education may not have been referred if they had had access to high-quality early intervention support. Some districts that have addressed mild special needs differently have ensured that only students who meet clear, rigorous, and consistently-applied criteria receive special education services, while all students have access to effective early intervention support, as needed, through general education. Since special education services are generally more costly than general education services, some districts may have an opportunity to shift some special education funds toward other district priorities while providing more effective services.
B4: Instructions: Answer the questions below about the district. For each one, there is a drop-down menu in the gray-shaded cell to its right. Please select the score that corresponds to the points for your answer choice. The scores will automatically sum at the bottom to give your total points.
B5: Question | C5: Answers | D5: Points | E5: Score
A6: 1 | B6: Has the percent of students with IEPs increased in the past ten years? | C6: Yes, by 2% points or more | D6: 50
C7: Yes, by less than 2% points | D7: 20
C8: No | D8: 0
C9: Do not know | D9: 50
A10: 2 | B10: Is the district's identification rate for special education higher than the state average? | C10: Yes | D10: 30
C11: No | D11: 0
C12: Do not know | D12: 30
A13: 3 | B13: Are IEP eligibility criteria consistency applied from school-to-school and/or practitioner-to-practitioner (i.e. would a student found eligible in one school be found eligible in another school)? | C13: Almost always | D13: 0
C14: Often | D14: 20
C15: Sometimes | D15: 40
C16: Rarely, if ever | D16: 60
C17: Do not know | D17: 60
A18: 4 | B18: For students with IEPs transferring into the district, to what extent are IEPs reviewed centrally for alignment to the district's service delivery model and eligibility criteria? | C18: Almost always | D18: 0
C19: Often | D19: 10
C20: Sometimes | D20: 20
C21: Rarely, if ever | D21: 30
A22: 5 | B22: At what rates are students referred for special education services in the middle and high schools versus in the elementary schools? | C22: At similar or higher rates than elementary | D22: 50
C23: At slightly lower rates | D23: 30
C24: At much lower rates | D24: 0
A25: 7 | B25: For students in grades K-3 who are not reading on grade level, to what extent do they receive reading support that is both outside of special education and in addition to core classroom reading instruction? | C25: Almost always | D25: 0
C26: Often | D26: 5
C27: Sometimes | D27: 40
C28: Rarely, if ever | D28: 60
A29: 8 | B29: In grades K-3, to what extent is additional reading support for students provided by highly-skilled reading teachers? | C29: Almost always | D29: 0
C30: Often | D30: 5
C31: Sometimes | D31: 30
C32: Rarely, if ever | D32: 50
A33: 9 | B33: If students struggle academically in grades 4-12, are there general education interventions available and are they expected to be accessed prior to referral for special education services? | C33: Almost always | D33: 0
C34: Often | D34: 5
C35: Sometimes | D35: 20
C36: Rarely, if ever | D36: 40
C37: Do not know | D37: 40
A38: 10 | B38: Is the district using 15% of its IDEA Part B funding for intervention? | C38: Almost all | D38: 0
C39: More than half | D39: 5
C40: Less than half | D40: 10
C41: Do not know | D41: 10
D42: Total points | E42: =SUM(E6:E41) -> 0

Sheet B8. Paras
B1: SCREENING TOOL | E1: 8
B2: Can the district free up funds from paraprofessional positions?
B3: Paraprofessionals play an important role in serving students with special needs. However, overreliance on paraprofessional support - particularly academic support - does not typically promote sufficient student learning or independence. Some districts have an opportunity to shift paraprofessional support to more effective instruction from highly-skilled teachers. Note: This opportunity only includes special education paraprofessionals. It does not include paraprofessionals assigned to support whole general education classrooms (e.g. Kindergarten paraprofessionals)
B5: Instructions: Answer the questions below about the district. For each one, there is a drop-down menu in the gray-shaded cell to its right. Please select the score that corresponds to the points for your answer choice. The scores will automatically sum at the bottom to give your total points.
B7: Question | C7: Answers | D7: Points | E7: Score
A8: 1 | B8: Has student enrollment decreased in the past 5 years? | C8: Yes, by 10% or more | D8: 25
C9: Yes, by less than 10% | D9: 0
C10: No | D10: 0
A11: 2 | B11: Has the total number of paraprofessional FTEs increased in the past 5 years? | C11: Yes, by 10% or more | D11: 60
C12: Yes, by less than 10% | D12: 30
C13: No | D13: 0
A14: 3 | B14: Do paraprofessionals provide reading support or assistance to elementary students with mild to moderate special needs or general education students? | C14: Yes | D14: 100
C15: No | D15: 0
C16: Do not know | D16: 100
A17: 4 | B17: Are paraprofessionals often assigned to general education classrooms? | C17: Yes, in kindergarten only | D17: 0
C18: Yes | D18: 50
C19: No | D19: 0
A20: 5 | B20: Are paraprofessionals part-time staff? | C20: Yes, most paraprofessionals | D20: 0
C21: Yes, some paraprofessionals | D21: 25
C22: Very few if any are part-time | D22: 50
A23: 6 | B23: Do paraprofessionals receive benefits? | C23: Yes, most paraprofessionals | D23: 50
C24: Yes, some paraprofessionals | D24: 25
C25: Very few if any receive benefits | D25: 0
B26: Total points | E26: =SUM(E8:E25) -> 0

Sheet B9. Intervention
B1: SCREENING TOOL | E1: 9
B2: Can the district free up funds by increasing the impact of intervention teaching positions?
B3: Intervention teachers, including reading and math specialists, play an important role. They provide instruction to students who struggle and, often, deliver interventions as part of districts' Response to Intervention (RTI) processes. Sometimes, other demands on their time - such as meetings and paperwork - can limit the amount of time intervention teachers spend with students. Also, scheduling constraints and the service delivery model used can often make it difficult for intervention teachers to serve as many students as they could. Some districts may have an opportunity to provide the same or higher levels of service by streamlining intervention teachers' non-instructional duties and increasing the number of students they serve. Note: Intervention teaching positions can look very different from district to district. This opportunity is based on a relatively broad definition of intervention teaching positions, including such positions as remedial math and reading teachers, Title I reading and math teachers, and others. In this case, intervention teaching positions are not meant to include special education teachers, related service practitioners, or paraprofessionals.
B5: Instructions: Answer the questions below about the district. For each one, there is a drop-down menu in the gray-shaded cell to its right. Please select the score that corresponds to the points for your answer choice. The scores will automatically sum at the bottom to give your total points.
B6: Question | C6: Answers | D6: Points | E6: Score
A7: 1 | B7: At the elementary level, do the intervention teachers attend IEP meetings? | C7: Almost always | D7: 40
C8: Often | D8: 30
C9: Sometimes | D9: 20
C10: Rarely, if ever | D10: 0
C11: Do not know | D11: 40
A12: 2 | B12: At the secondary level, do the intervention teachers attend IEP meetings? | C12: Almost always | D12: 40
C13: Often | D13: 30
C14: Sometimes | D14: 20
C15: Rarely, if ever | D15: 0
C16: Do not know | D16: 40
A17: 3 | B17: At the elementary level, do intervention teachers attend planning meetings with more than two grade-level or content-area teams? | C17: Almost always | D17: 30
C18: Often | D18: 20
C19: Sometimes | D19: 0
C20: Rarely, if ever | D20: 0
C21: Do not know | D21: 30
A22: 4 | B22: At the secondary level, do intervention teachers attend planning meetings with more than two grade-level or content-area teams? | C22: Almost always | D22: 30
C23: Often | D23: 20
C24: Sometimes | D24: 0
C25: Rarely, if ever | D25: 0
C26: Do not know | D26: 30
A27: 5 | B27: Do intervention teachers provide one-to-one instruction? | C27: Almost always | D27: 50
C28: Often | D28: 40
C29: Sometimes | D29: 10
C30: Rarely, if ever | D30: 0
C31: Do not know | D31: 20
A32: 6 | B32: What is the typical caseload (meaning the number of students seen in a given week) for intervention teachers? Note: please use "adjusted caseloads" to account for partial FTE, (number of students seen per week divided by FTE) | C32: Greater than 40 | D32: 0
C33: 30-40 | D33: 20
C34: 10-30 | D34: 50
C35: Fewer than 10 | D35: 80
C36: Do not know | D36: 80
A37: 7 | B37: Do intervention teachers create their own schedules and/or caseloads? | C37: Almost always | D37: 50
C38: Often | D38: 40
C39: Sometimes | D39: 30
C40: Rarely, if ever | D40: 0
A41: 8 | B41: Are intervention teachers' actual caseloads reviewed by central office at least once per year? | C41: Yes | D41: 0
C42: No | D42: 30
D43: Total points | E43: =SUM(E7:E42) -> 0

Sheet B10. Sped teachers
B1: SCREENING TOOL | E1: 10
B2: Can the district free up funds from special education teaching positions?
B3: Special education teachers play a critical role in supporting students with disabilities. In addition to providing instruction to students, special education teachers also have other important responsibilities, particularly as part of the Individualized Education Plan (IEP) process. Sometimes, these non-direct instructional demands on teachers' time - such as meetings and the paperwork associated with the IEP process - can limit the amount of direct support that special education teachers provide to students. Also, scheduling constraints and a school's service delivery model can limit the number of students that special education teachers serve. Some districts may have an opportunity to provide higher levels of service with fewer staff members by streamlining the meetings and paperwork associated with the IEP process and managing scheduling and other processes differently in order to increase the number of students special education teachers are able to serve.
B4: Note: This opportunity looks specifically at special education teachers who primarily support students with mild-to-moderate disabilities, including teachers in co-teaching, inclusion, resource room, or pullout settings. This opportunity does NOT include special education teachers who primarily support students with severe needs in substantially-seperate settings, related service providers (e.g., physical therapists, Speech and Langage Pathologosts, occupational therepists), or other staff in the special education department (e.g., IEP team leader, psychologists, paraprofessionals)
B5: Instructions: Answer the questions below about the district. For each one, there is a drop-down menu in the gray-shaded cell to its right. Please select the score that corresponds to the points for your answer choice. The scores will automatically sum at the bottom to give your total points.
B7: Question | C7: Answers | D7: Points | E7: Score
A8: 1 | B8: Are IEP teams routinely reconvened between annual meetings? | C8: Often | D8: 50
C9: Sometimes | D9: 30
C10: Rarely, if ever | D10: 0
A11: 2 | B11: Do special education teachers attend meetings with more than one grade-level or content-area team? | C11: Often | D11: 50
C12: Sometimes | D12: 30
C13: Rarely, if ever | D13: 0
A14: 3 | B14: Does the IEP process make use of specialized software for writing and managing IEPs? | C14: Yes | D14: 0
C15: No | D15: 40
A16: 4 | B16: At the secondary level, do special education teachers work with students for fewer class periods than general education teachers? | C16: Yes, at all schools | D16: 50
C17: Yes, at some schools | D17: 40
C18: No | D18: 0
A19: 5 | B19: What is the typical caseload of special education teachers who primarily serve students with mild-to-moderate disabilities? | C19: Greater than 30 | D19: 0
C20: Between 20 and 29 | D20: 30
C21: Fewer than 20 | D21: 50
C22: Do not know | D22: 50
A23: 6 | B23: Does the district track the student-to-teacher ratio in substantially-separate classrooms and shift staffing based on enrollment? | C23: Yes | D23: 0
C24: No | D24: 50
C25: Do not know | D25: 50
A26: 7 | B26: Are special education teachers' actual caseloads reviewed by district leadership at least once per year? | C26: Yes | D26: 0
C27: No | D27: 30
A28: 8 | B28: Do special education teachers create their own schedules? | C28: Often | D28: 30
C29: Sometimes | D29: 20
C30: Rarely, if ever | D30: 0
D31: Total points | E31: =SUM(E8:E30) -> 0

Sheet B11. SLPs
B1: SCREENING TOOL | E1: 11
B2: Can the district free up speech and language therapist positions?
B3: Speech and language therapists play an important role in serving students with special needs. In some cases, districts may be able to provide the same or higher levels of service with fewer therapists by clarifying staffing guidelines, service delivery models, and/or entrance and exit criteria for services. Note: This opportunity looks at speech and language therapist positions only, and does not include speech and language assistants or other related services providers.
B4: Instructions: Answer the questions below about the district. For each one, there is a drop-down menu in the gray-shaded cell to its right. Please select the score that corresponds to the points for your answer choice. The scores will automatically sum at the bottom to give your total points.
B5: Question | C5: Answers | D5: Points | E5: Score
A6: 1 | B6: Has student enrollment decreased in the past 5 years? | C6: Yes, by 10% or more | D6: 25
C7: No, or by less than 10% | D7: 0
A8: 2 | B8: Has the number of speech and language therapists increased in the past 5 years? | C8: Yes, by 10% or more | D8: 25
C9: Yes, by less than 10% | D9: 10
C10: No | D10: 0
A11: 3 | B11: Are any speech and language services sub-contracted? | C11: Yes | D11: 50
C12: No | D12: 0
A13: 4 | B13: At the elementary level, are most speech and language therapists assigned to a single building? | C13: Yes | D13: 75
C14: No | D14: 0
A15: 5 | B15: What is the average caseload of an speech and language therapist? | C15: More than 40 students | D15: 0
C16: Between 30 and 40 students | D16: 50
C17: Fewer than 30 students | D17: 75
C18: Do not know | D18: 75
A19: 6 | B19: Does the district employ speech and language assistants? | C19: Yes | D19: 0
C20: No | D20: 25
C21: Not allowed by state statute | D21: 0
A22: 7 | B22: Do SLPs mostly create their own schedules? | C22: Yes | D22: 30
C23: No | D23: 0
B24: Total points | E24: =SUM(E6:E23) -> 0

Sheet B12. Title I
B1: SCREENING TOOL | D1: 12
B2: Can the district increase the impact of Title I spending?
B3: Title I funding can represent a significant source of revenue for many districts. However, managing Title I funding can be complex, and risk of non-compliance can sometimes discourage districts from proactively aligning funds to the district's strategic priorities. As a result, Title I spending can sometimes have little impact on student achievement. Some districts have shifted spending to strategic priorities by tightly managing the Title I budget, increasing visibility, and/or using funds flexibility, as allowable by regulations (e.g. through schoolwide Title I programs). Note: Include all Title I funds whether spent or managed at the district or school level.
B4: Instructions: Answer the questions below about the district. For each one, there is a drop-down menu in the gray-shaded cell to its right. Please select the score that corresponds to the points for your answer choice. The scores will automatically sum at the bottom to give your total points.
B6: Question | C6: Answers | D6: Points | E6: Score
A7: 1 | B7: Does senior teaching and learning leadership (e.g. Chief Academic Officer) manage and direct the use of Title I funds? | C7: Yes, actively manages and directs most or all funds | D7: 0
C8: Yes, actively manages and directs some funds | D8: 30
C9: Yes, reviews uses of funds but does not manage funds | D9: 40
C10: No, has limited input | D10: 50
C11: NA - the district has very little Title I funding | D11: 0
B12: If the answer to question 1 was "NA - the district has very little Title I funding," this opportunity does not apply to your district. Please continue to another opportunity.
A13: 2 | B13: Has the use of Title I funds been analyzed and reviewed at the senior leadership level in the past two years? | C13: Yes | D13: 0
C14: No | D14: 60
A15: 3 | B15: For the portion of Title I funds managed at the district level by district leaders, was Title I used to fund a few key districtwide strategic priorities last year? | C15: Yes, nearly all Title I funds | D15: 0
C16: Yes, a significant portion of funds | D16: 5
C17: Yes, a small portion of funds | D17: 10
C18: Very little, if any funds | D18: 20
C19: NA - very little funds managed at the district level | D19: 0
C20: Do not know | D20: 20
A21: 4 | B21: For the portion of Title I funds managed at the school level by principals or other school staff, was Title I used to fund a few of the schools' key strategic priorities last year? | C21: Yes, nearly all Title I funds | D21: 0
C22: Yes, a significant portion of funds | D22: 5
C23: Yes, a small portion of funds | D23: 10
C24: Very little, if any funds | D24: 20
C25: NA - very little funds managed at the school level | D25: 0
C26: Do not know | D26: 20
A27: 5 | B27: Last year, was Title I used to fund reductions in class size? | C27: Yes, nearly all Title I funds | D27: 60
C28: Yes, a significant portion of funds | D28: 40
C29: Yes, a small portion of funds | D29: 20
C30: Very little, if any funds | D30: 0
C31: Do not know | D31: 60
A32: 6 | B32: Last year, was Title I used to fund paraprofessional/ aide positions? | C32: Yes, nearly all Title I funds | D32: 60
C33: Yes, a significant portion of funds | D33: 40
C34: Yes, a small portion of funds | D34: 10
C35: Very little, if any funds | D35: 40
C36: Do not know | D36: 60
A37: 7 | B37: Last year, was Title I used to fund professional development conferences, workshops, and outside contractors to provide short-term professional development for teachers? | C37: Yes, nearly all Title I funds | D37: 30
C38: Yes, a significant portion of funds | D38: 20
C39: Yes, a small portion of funds | D39: 10
C40: Very little, if any funds | D40: 0
C41: Do not know | D41: 30
A42: 8 | B42: At schoolwide Title I schools, do Title I services exclude students who are not eligible for Free and/or Reduced Lunch? | C42: Yes, in many schoolwide Title I schools | D42: 20
C43: Yes, in some schoolwide Title I schools | D43: 10
C44: Yes, in a few schoolwide Title I schools | D44: 5
C45: In no schoolwide Title I schools | D45: 0
C46: Do not know how schoolwide Title I funds are used | D46: 20
C47: Do not know which schools are schoolwide Title I schools | D47: 20
C48: NA - do not have any Title I schoolwide schools | D48: 0
D49: Total points | E49: =SUM(E7:E48) -> 0

Sheet B13. OOD
B1: SCREENING TOOL | D1: 13
B2: Can the district free up funds by reducing reliance on out-of-district special education placements?
B3: Some students with severe disabilities require highly-specialized programs and support. In many cases, districts enroll these students in out-of-district programs, which can often be very costly. Some districts have expanded their in-district programming for students with more severe disabilities in order to serve more students in-district. This not only allows students to be served closer to home, but also allows districts to provide appropriate services at a lower cost.
B4: Instructions: Answer the questions below about the district. For each one, there is a drop-down menu in the gray-shaded cell to its right. Please select the score that corresponds to the points for your answer choice. The scores will automatically sum at the bottom to give your total points.
B6: Question | C6: Answers | D6: Points | E6: Score
A7: 1 | B7: Has the number of students with severe disabilities served in-district been increasing, decreasing, or flat in the past five years? | C7: Increasing significantly | D7: 0
C8: Increasing slightly | D8: 5
C9: Flat | D9: 25
C10: Decreasing | D10: 50
A11: 2 | B11: Has the number of students being returned to the district from out-of-district placements been increasing, decreasing, or flat in the past year? | C11: Increasing significantly | D11: 0
C12: Increasing slightly | D12: 5
C13: Flat | D13: 25
C14: Decreasing | D14: 50
C15: Do not know | D15: 50
A16: 3 | B16: In the budget, has the cost of out-of-district tuitions been increasing in the past three years? | C16: Yes, in proportion to the overall budget | D16: 0
C17: Yes, in greater proportion than the overall budget | D17: 50
C18: Yes, in smaller proportion than the overall budget | D18: 0
C19: No | D19: 0
C20: Do not know | D20: 50
A21: 4 | B21: Are students whose primary disability is mild autism served out-of-district? | C21: Yes, most students with mild autism are served out-of-distrct | D21: 20
C22: Yes, many students with mild autism are served out-of-distrct | D22: 10
C23: Yes, some students with mild autism are served out-of-distrct | D23: 5
C24: Very few if any | D24: 0
A25: 5 | B25: Are students with behavior issues served out-of-district? | C25: Most students with behavior issues are served out-of-distrct | D25: 20
C26: Many students with behavior issues are served out-of-distrct | D26: 10
C27: Some students with behavior issues are served out-of-distrct | D27: 5
C28: Very few if any | D28: 0
A29: 6 | B29: Are any students with specific learning disabilities served out-of-district? | C29: Yes | D29: 50
C30: No | D30: 0
A31: 7 | B31: In cases where students with severe disabilities do not have access to suitable programs in their home school, are they transferred to other in-district schools with a suitable program (as opposed to starting a new program at the home school or enrolling the student in an out-of-district program)? | C31: Often | D31: 0
C32: Sometimes | D32: 5
C33: Rarely, if ever | D33: 10
A34: 8 | B34: In the past three years, has the district increased its staffing levels of professionals who are experts in serving students with autism and/or behavior issues? | C34: Yes, significant increase | D34: 0
C35: Yes, some increase | D35: 5
C36: Little or no increase | D36: 10
D37: Total points | E37: =SUM(E7:E36) -> 0

Sheet B14. Alt schools
B1: SCREENING TOOL | E1: 14
B2: Can the district free up funds by reducing its reliance on alternative schools for students with behavioral challenges?
B3: Providing alternative schools for students with behavioral challenges can help address student need, but can be a very costly approach. Often a major cost driver in alternative schools is the very small class size, typically well below district targets. Some districts have reduced spending and met student need by providing robust behavioral supports in traditional schools, and/or carefully monitoring staffing levels in alternative schools. Note: For the purposes of this tool, only include secondary alternative schools.
B4: Instructions: Answer the questions below about the district. For each one, there is a drop-down menu in the gray-shaded cell to its right. Please select the score that corresponds to the points for your answer choice. The scores will automatically sum at the bottom to give your total points.
B5: Question | C5: Answers | D5: Points | E5: Score
A6: 1 | B6: Does the district have alternative schools? | C6: No | D6: 0
C7: Yes | D7: 10
A8: 2 | B8: Are alternative schools designed primarily for addressing behavior issues rather than for credit recovery or vocational training? | C8: No | D8: 0
C9: Yes | D9: 20
A10: 3 | B10: At the secondary level, what percentage of the total student population is enrolled in alternative schools focused on behavior? | C10: Less than 1% | D10: 0
C11: Between 1% and 2% | D11: 25
C12: Greater than 2% | D12: 40
A13: 4 | B13: Has student enrollment in alternative schools increased over the last five years? | C13: Yes, by 2% points or more | D13: 20
C14: Yes, by less than 2% points | D14: 10
C15: No | D15: 0
A16: 5 | B16: Are class sizes intentionally smaller at alternative schools? | C16: Yes, substantially smaller | D16: 20
C17: Yes, somewhat smaller | D17: 10
C18: No | D18: 0
C19: Do not know | D19: 20
A20: 6 | B20: Are staffing levels at alternative schools adjusted annually based on projected enrollment? | C20: Yes | D20: 0
C21: No | D21: 40
A22: 7 | B22: Do any schools in the district have a zero-tolerance policy in regards to discipline (i.e. is a student automatically expelled from the school for certain disciplinary infractions)? | C22: Yes | D22: 20
C23: No | D23: 0
C24: Do not know | D24: 20
A25: 8 | B25: Are there behavioral programs and/or behavioral specialists in the traditional schools, specifically responsible for working with students and teachers to keep students with challenging behavior issues in traditional schools? | C25: Yes | D25: 0
C26: No | D26: 20
A27: 9 | B27: In the past 10 years, has the district considered consolidating two or more alternative schools? | C27: Yes | D27: 0
C28: No | D28: 20
C29: Do not know | D29: 20
D30: Total points | E30: =SUM(E6:E26) -> 0

Sheet B15. FARM (hidden)
A1: NOTE: THIS TAB IS BEING RE-WORKED TO APPLY TO A BROADER RANGE OF DISTRICTS, PLEASE USE ACCORDINGLY.
B2: SCREENING TOOL | E2: 15
B3: Can the district increase state and federal funding by maximizing free and reduced-priced meals (FARM) enrollment?
B4: Federal Title I and other funding is based in part on the percentage of students enrolled in free and reduced-price meals (FARM). Some districts may have an opportunity to identify additional students who are eligible but not yet enrolled in the programs. Developing systems and ways to track student eligibility and enrollment can help generate additional funds for schools to invest in other priorities, without having to reduce spending elsewhere. District that maximize FARM revenue by ensuring high student enrollment, typically have a sizeable low income population, a staff member who is responsible for tracking/boosting student participation, and/or similar enrollment rates at all grade levels (e.g., elementary, middle, and high).
B5: Instructions: Answer the questions below about the district. For each one, there is a drop-down menu in the gray-shaded cell to its right. Please select the score that corresponds to the points for your answer choice. The scores will automatically sum at the bottom to give your total points.
B6: Question | C6: Answers | D6: Points | E6: Score
A7: 1 | B7: What percentage of students in your district are enrolled in FARM? | C7: More than 70% | D7: 40
C8: Between 40% and 70% | D8: 20
C9: Less than 40% | D9: 0
A10: 2 | B10: Has there been a significant shift in community demographics within the past 15 years? | C10: No | D10: 0
C11: Yes, poverty is decreasing | D11: 0
C12: Yes, poverty is increasing | D12: 30
A13: 3 | B13: Who is in charge of ensuring all eligible students are enrolled in FARM? | C13: No one | D13: 30
C14: Food service | D14: 20
C15: Head of Title I | D15: 10
C16: Principals | D16: 0
C17: Do not know | D17: 30
A18: 4 | B18: Does the district directly certify students as FARM eligible who receive Supplemental Nutrition Assistance Program (SNAP), Medicaid, or whose family receives Temporary Assistance for Needy Families (TANF)? | C18: Majority of students are directly certified | D18: 0
C19: Some students | D19: 0
C20: Few, if any student | D20: 20
C21: Do not know | D21: 20
A22: 5 | B22: If eligible, does the district utilize Provision 2 of the National School Lunch Act that allows high-poverty schools to identify students eligible for FARM on a four-year cycle? | C22: Yes | D22: 0
C23: No | D23: 20
C24: Do not know | D24: 20
A25: 6 | B25: Is there a higher FARM enrollment rate at the elementary level than at the secondary level? | C25: No | D25: 0
C26: Yes | D26: 40
C27: Do not know | D27: 40
A28: 7 | B28: Is there a formal process to identify new students who transfer into the district as eligible for FARM? | C28: No | D28: 30
C29: Yes | D29: 0
A30: 8 | B30: Are the communications about FARM provided to families in their home languages? | C30: No | D30: 30
C31: Yes | D31: 0
A32: 9 | B32: At the elementary level, is the meal payment process anonymous (i.e. is a student able to receive a FARM at school without classmates knowing that the meal was free or reduced in price)? | C32: Yes | D32: 0
C33: No | D33: 20
C34: Do not know | D34: 20
A35: 10 | B35: At the secondary level, are the meal payment forms anonymous (i.e. is a student able to receive a FARM without classmates knowing that the meal was free or reduced in price)? | C35: Yes | D35: 0
C36: No | D36: 20
C37: Do not know | D37: 20
D38: Total points | E38: =SUM(E7:E37) -> 0

Sheet B16. MEDICAID
B1: SCREENING TOOL | E1: 16
B2: Can the district increase federal Medicaid reimbursement for health-related student services?
B3: Some districts may have the opportunity to identify additional special education services that can be reimbursed by Medicaid. The added Medicaid revenue can be used to invest in other priorities without having to reduce spending. Districts that successfully maximize Medicaid reimbursement typically have a single point-person in the business office who is charged with tracking and maximizing reimbursements. The point person develops and monitors systems to identify services that are eligible for reimbursement and ways to track practitioner and/vendor reporting on a monthly basis. Because eligible services and reimbursement requirements vary significantly by state, potential increases in Medicaid reimbursement will vary significantly.
B4: Instructions: Answer the questions below about the district. For each one, there is a drop-down menu in the gray-shaded cell to its right. Please select the score that corresponds to the points for your answer choice. The scores will automatically sum at the bottom to give your total points.
B5: Question | C5: Answers | D5: Points | E5: Score
A6: 1 | B6: Has Medicaid reimbursement been increasing, decreasing, or flat in recent years? | C6: Increasing | D6: 0
C7: Flat | D7: 5
C8: Decreasing | D8: 20
C9: Do not know | D9: 20
A10: 2 | B10: Does the business office know what all the specific services are that are eligible for Medicaid reimbursement in the state? | C10: Yes | D10: 0
C11: No | D11: 50
C12: Not sure | D12: 50
A13: 3 | B13: Does the district have an established system for indentifying students who are eligible for Medicaid? | C13: Yes | D13: 0
C14: No | D14: 20
C15: Do not know | D15: 20
A16: 4 | B16: Who is responsible for monitoring and maximizing Medicaid reimbursement? | C16: Outside vendor | D16: 20
C17: Special education team | D17: 20
C18: Business office | D18: 0
A19: 5 | B19: What portion of practitioners who provide eligible services completed the paperwork required for reimbursement last month (e.g., speech and language therapists, occupational therapists, nurses, physical therapists)? | C19: Do not know | D19: 50
C20: Fewer than one-half | D20: 50
C21: Between one-half and three-quarters | D21: 20
C22: More than three-quarters | D22: 5
C23: All | D23: 0
A24: 6 | B24: How does the district's Medicaid reimbursement per pupil compare to like communities across the state? | C24: The district receives less | D24: 25
C25: The district receives more | D25: 0
C26: Do not know | D26: 25
A27: 7 | B27: Does Medicaid reimbursement flow directly to the school district? | C27: Yes | D27: 20
C28: No | D28: 0
D29: Total points | E29: =SUM(E6:E28) -> 0

Sheet B17. PD
B1: SCREENING TOOL | E1: 17
B2: Can the district free up funds from professional development expenditures?
B3: Districts invest a significant portion of their budgets toward "professional development" for their teachers, which, defined broadly, includes all time teachers spend on activities aimed at increasing their effectiveness. The full costs of professional development are often much larger than districts expect and are often much larger than they appear in the budget. In some districts, much of the spending on professional development does not lead to improved student outcomes. Professional development must be sustained, intensive, differentiated, and focused in order to have an impact on student achievement. Districts have taken two inter-related approaches to improving the cost-effectiveness of professional development: 1) Reduce or eliminate ineffective efforts, and 2) Expand effective professional development efforts at little or no additional costs. Reduce or eliminate ineffective efforts: Some districts have shifted spending toward more effective and cost-effective professional development efforts by measuring the effectiveness of all activities and reducing or eliminating ineffective spending. For example, some districts have reduced or eliminated spending on short-term conferences and workshops, which by definition do not provide intensive or sustained support to teachers. Other districts have reduced professional development that is provided outside of the regular school day or year, which is often very costly and often not as effective as job-embedded efforts.
B4: Instructions: Answer the questions below about the district. For each one, there is a drop-down menu in the gray-shaded cell to its right. Please select the score that corresponds to the points for your answer choice. The scores will automatically sum at the bottom to give your total points.
B6: Question | C6: Answers | D6: Points | E6: Score
A7: 1 | B7: Has student achievement in most grades and subjects been increasing, decreasing, or flat in recent years (not including any changes in the assessment tool)? | C7: Increasing significantly | D7: 0
C8: Increasing slightly | D8: 20
C9: Flat | D9: 50
C10: Decreasing | D10: 50
A11: 2 | B11: Has the district measured the impact of various professional development opportunities in the past year beyond teacher satisfaction? | C11: Yes | D11: 0
C12: No | D12: 50
A13: 3 | B13: Has the district reduced or eliminated professional development opportunities based on student achievement data in the past two years? | C13: Yes, many | D13: 0
C14: Yes, some | D14: 30
C15: Few, if any | D15: 50
A16: 4 | B16: Do most teachers have early release days and/or full days devoted to professional development, planning, or orientation? | C16: Yes, the equivalent of 1 full day per year | D16: 0
C17: Yes, the equivalent of 2 full days per year | D17: 10
C18: Yes, the equivalent of 3 or 4 full days per year | D18: 50
C19: Yes, the equivalent of 5 or more full days per year | D19: 75
C20: No | D20: 0
A21: 5 | B21: Do teachers receive stipends to collaborate with colleagues or participate in other professional development activities before or after the regular school day? | C21: Yes, most teachers in the district receive stipends | D21: 50
C22: Yes, some teachers in the district receive stipends | D22: 30
C23: Few, if any | D23: 0
A24: 6 | B24: Does the district pay outside consultants or providers for professional development for classroom teachers? | C24: Yes, only for long-term training | D24: 20
C25: Yes, mostly for short-term workshops and sessions | D25: 60
C26: Rarely, if ever | D26: 0
A27: 7 | B27: Does the district pay for teachers to attend short-term professional development conferences and workshops out of the district? | C27: Yes, for most teachers | D27: 50
C28: Yes, for some teachers | D28: 30
C29: Rarely, if ever | D29: 0
D30: Total points | E30: =SUM(E7:E29) -> 0

Sheet B18. No-cost PD
B1: SCREENING TOOL | E1: 18
B2: Can the district provide more professional development opportunities for core teachers at little or no additional cost?
B3: Districts invest a significant portion of their budgets toward "professional development" for their teachers, which, defined broadly, includes all time teachers spend on activities aimed at increasing their effectiveness. The full costs of professional development are often much larger than districts expect and are often much larger than they appear in the budget. In some districts, much of the spending on professional development does not lead to improved student outcomes. Professional development must be sustained, intensive, differentiated, and focused in order to have an impact on student achievement. Districts have taken two inter-related approaches to improving the cost-effectiveness of professional development: 1) Reduce or eliminate ineffective efforts, and 2) Expand effective professional development efforts at little or no additional costs. Expand effective professional development efforts at little or no additional costs: Some districts may have an opportunity to provide more professional development opportunities for core teachers - who provide instruction to students in key subject areas - without significantly increasing spending. This may include aligning existing time and resources toward collaboration and other professional development efforts. Note: "Core teachers" refers to elementary classroom teachers and secondary teachers who teach core classes, including math, English Language Arts, science, social studies, and foreign languages.
B4: Instructions: Answer the questions below about the district. For each one, there is a drop-down menu in the gray-shaded cell to its right. Please select the score that corresponds to the points for your answer choice. The scores will automatically sum at the bottom to give your total points.
B6: Question | C6: Answers | D6: Points | E6: Score
A7: 1 | B7: Typically speaking, how often do principals observe lessons and provide specific and actionable feedback to core teachers that aligns with districtwide goals? | C7: Less frequently than once per year | D7: 60
C8: At least annually | D8: 40
C9: At least quarterly | D9: 20
C10: At least monthly | D10: 5
C11: More than once per month | D11: 0
A12: 2 | B12: If the district has coaches, how often do coaches who work with core teachers observe lessons and provide specific and actionable feedback to core teachers that aligns with districtwide goals? | C12: Less frequently than once per year | D12: 60
C13: At least annually | D13: 40
C14: At least quarterly | D14: 20
C15: At least monthly | D15: 5
C16: Do not know | D16: 40
C17: NA - do not have coaches | D17: 0
A18: 3 | B18: At the elementary school level, is common planning time and/or other time for core teachers to collaborate built into the regular school day (i.e. does not happen before or after school)? | C18: Almost always | D18: 0
C19: Often | D19: 20
C20: Sometimes | D20: 40
C21: Rarely, if ever | D21: 50
C22: Do not know | D22: 50
A23: 4 | B23: At the middle school level, is common planning time and/or other time for core teachers to collaborate built into the regular school day (i.e. does not happen before or after school)? | C23: Almost always | D23: 0
C24: Often | D24: 20
C25: Sometimes | D25: 40
C26: Rarely, if ever | D26: 50
C27: Do not know | D27: 50
A28: 5 | B28: At the high school level, is common planning time and/or other time for core teachers to collaborate built into the regular school day (i.e. does not happen before or after school)? | C28: Almost always | D28: 0
C29: Often | D29: 20
C30: Sometimes | D30: 40
C31: Rarely, if ever | D31: 50
C32: Do not know | D32: 50
A33: 6 | B33: Are faculty meetings primarily used for professional development or other activities aimed at improving teacher practice? | C33: Almost always | D33: 0
C34: Often | D34: 10
C35: Sometimes | D35: 20
C36: Rarely, if ever | D36: 40
A37: 7 | B37: In the case that core teachers are required to complete trainings on initiatives that are not central to the district's strategic priorities (e.g. new state laws/regulations, information on district policies), do teachers complete these trainings outside the regular school day online? | C37: Almost always | D37: 0
C38: Often | D38: 10
C39: Sometimes | D39: 20
C40: Rarely, if ever | D40: 30
D41: Total points | E41: =SUM(E7:E40) -> 0

Sheet B19. Coaching impact
B1: SCREENING TOOL | E1: 19
B2: Can the district increase the impact of the coaching model at little to no additional cost?
B3: Instructional coaching for teachers can be a powerful lever for raising student achievement, but can be very expensive. Districts that have seen the greatest results from instructional coaching efforts have hired only highly-effective coaches, focused support on high-potential teachers, provided coaches with focused professional development and support, and tracked the impact of coaching on student achievement. Note: This opportunity includes all positions devoted to observing teachers, providing feedback, and coaching support to teachers, but does not include administrators (e.g. principals, assistant principals)
B4: Instructions: Answer the questions below about the district. For each one, there is a drop-down menu in the gray-shaded cell to its right. Please select the score that corresponds to the points for your answer choice. The scores will automatically sum at the bottom to give your total points.
B5: Question | C5: Answers | D5: Points | E5: Score
A6: 1 | B6: Have test scores been flat or declining in the subjects being coached? | C6: Yes | D6: 40
C7: No | D7: 0
A8: 2 | B8: How were the current instructional coaches selected? | C8: Demonstrated effectiveness in classroom | D8: 0
C9: Avoid RIF/layoff | D9: 50
C10: To remove from classroom | D10: 50
C11: A combination of the above | D11: 30
C12: Do not know | D12: 50
A13: 3 | B13: Prior to being hired as instructional coaches, was there evidence available to show that students of the coaches achieved above-average growth? | C13: Yes | D13: 0
C14: No | D14: 50
A15: 4 | B15: Does the district track student achievement for groups of teachers who are being coached and link it to their coach? | C15: Yes | D15: 0
C16: Yes, but data not used to determine if coach continues in role | D16: 20
C17: No | D17: 20
A18: 5 | B18: Does the district exit ineffective coaches by returning them to the classroom or other means? | C18: Often | D18: 0
C19: Sometimes | D19: 10
C20: Rarely, if ever | D20: 20
A21: 6 | B21: Who supervises the coaches in their coaching capacity? | C21: Principal | D21: 0
C22: Central office leader | D22: 0
C23: It varies | D23: 20
C24: Do not know | D24: 20
A25: 7 | B25: What percentage of a coach's typical work week does a coach spend working directly with teachers? | C25: Less than 25% | D25: 50
C26: Between 25% and 50% | D26: 30
C27: Between 50% and 75% | D27: 0
C28: More than 75% | D28: 0
C29: Do not know | D29: 50
A30: 8 | B30: Which teachers receive coaching support? | C30: All | D30: 20
C31: Mostly highly-effective teachers | D31: 10
C32: Mostly new teachers | D32: 10
C33: Mostly teachers of average effectiveness | D33: 0
C34: Mostly struggling and/or ineffective teachers | D34: 20
A35: 9 | B35: How are teachers identified for coaching support? Choose all that apply. | C35: Teachers volunteer | D35: 10
C36: Selected by principals | D36: 0
C37: Based on seniority | D37: 10
C38: Based on student achievement or educator evaluation data | D38: 0
C39: Based on teacher role, grade, or subject | D39: 10
A40: 10 | B40: Are coaches coaching in their content area of expertise (i.e. are math teachers coached by math experts, reading teachers coached by reading specialists)? | C40: Always | D40: 0
C41: Often | D41: 10
C42: Sometimes | D42: 20
C43: Rarely | D43: 30
C44: Do not know | D44: 30
A45: 11 | B45: How are current coaches assigned? | C45: Fixed coaching FTE by school | D45: 40
C46: Based on student enrollment | D46: 0
C47: Based on the number of teachers who will receive coaching | D47: 0
C48: Do not know | D48: 40
D49: Total points | E49: =SUM(E6:E48) -> 0

Sheet B20. Free funds coaching
B1: SCREENING TOOL | E1: 20
B2: Can the district free up funds from instructional coaching positions?
B3: Instructional coaching can be a core part of a district's plan for raising student achievement, but it can also be very expensive. Some districts may have an opportunity to make their coaching models more sustainable by investigating lower-cost service delivery models. Districts that have implemented lower-cost models have leveraged existing district resources by, for example, utilizing the district's most effective teachers as part-time coaches and using standing meetings (e.g., grade-level meetings, faculty meetings) as opportunities for coaching support.
B6: Instructions: Answer the questions below about the district. For each one, there is a drop-down menu in the gray-shaded cell to its right. Please select the score that corresponds to the points for your answer choice. The scores will automatically sum at the bottom to give your total points.
B8: Question | C8: Answers | D8: Points | E8: Score
A9: 1 | B9: Does the district have an evidence-based system for identifying highly-effective teachers? | C9: Yes | D9: 40
C10: No | D10: 0
A11: 2 | B11: Do effective teachers model lessons for other teachers? | C11: Yes | D11: 40
C12: No | D12: 0
A13: 3 | B13: Do effective teachers lead school and/or districtwide professional development? | C13: Yes | D13: 40
C14: No | D14: 0
A15: 4 | B15: Do effective teachers lead school and/or districtwide data teams? | C15: Yes | D15: 40
C16: No | D16: 0
A17: 5 | B17: Do schools have a strong culture of peer learning and/or peer observation? | C17: Many schools | D17: 40
C18: Some schools | D18: 20
C19: Very few or no schools | D19: 0
A20: 6 | B20: Do school schedules include common planning time and/or grade level meetings at least weekly? | C20: Yes | D20: 25
C21: No | D21: 0
D22: Total points | E22: =SUM(E9:E21) -> 0

Sheet B21. Central office
B1: SCREENING TOOL | E1: 21
B2: Can the district free up funds from central office spending?
B3: Some districts can effectively support their schools with a leaner central office. Streamlining central office functions, clarifying roles and responsibilities between schools and central office, and eliminating ineffective services can free up funds without reducing school-based spending. Note: Do not include personnel or expenditures that are budgeted centrally but take place in schools (e.g., special education personnel, related services personnel)
B4: Instructions: Answer the questions below about the district. For each one, there is a drop-down menu in the gray-shaded cell to its right. Please select the score that corresponds to the points for your answer choice. The scores will automatically sum at the bottom to give your total points.
B6: Question | C6: Answers | D6: Points | E6: Score
A7: 1 | B7: Has student enrollment decreased in the past 5 years? | C7: Yes, by 5% points or more | D7: 30
C8: Yes, by 2% to 5% points or more | D8: 20
C9: No, or by less than 2% points | D9: 0
A10: 2 | B10: Have new central office positions been created in the past 5 years, perhaps as a result of new grant funding (e.g., Race to the Top, stimulus funding)? | C10: Yes | D10: 25
C11: No | D11: 0
A12: 3 | B12: Have some central office positions been switched to the operating budget from grant funding as grants have come to an end? | C12: Yes | D12: 25
C13: No | D13: 0
A14: 4 | B14: Has the district devolved professional development or some other central office functions to schools through means such as weighted student funding or principal autonomy in the last five years? | C14: Yes | D14: 25
C15: No | D15: 0
A16: 5 | B16: Have local residents, civic groups, building leaders, and/or other stakeholders pushed for a smaller central office? | C16: Yes, it is brought up repeatedly during budget debates | D16: 75
C17: Yes, it is sometimes raised by stakeholders | D17: 50
C18: No or seldom | D18: 0
B19: Total points | E19: =SUM(E7:E18) -> 0

Sheet B22. Building admins
B1: SCREENING TOOL | E1: 22
B2: Can the district free up funds from school-based administrator positions and/or increase the impact of existing positions?
B3: Assistant Principals (APs), deans, and/or equivalent positions can serve as key instructional leaders in schools, playing an important role in developing teaching talent and managing the school. However, some districts may have an opportunity to free up funds from these positions, as these positions may be staffed at higher levels than are needed to provide effective building management or compared to other, similar districts. Districts that maximize APs, deans, and/or other equivalent positions carefully match need to staffing level and often do not rely on a a per building allocation model. Additionally, some districts may have an opportunity to increase the impact of existing positions, as APs, deans, and/or equivalent positions may perform activities and tasks that others could do (e.g., bus duty, student supervision). Note: Building administrator positions can look different from district to district. This screening is based on a relatively broad definition of building administrator positions. Building administrator positions in this instance are meant to include positions such assistant principals, deans, department heads, or other equivalent positions, but does not include principals.
B4: Instructions: Answer the questions below about the district. For each one, there is a drop-down menu in the gray-shaded cell to its right. Please select the score that corresponds to the points for your answer choice. The scores will automatically sum at the bottom to give your total points.
B5: Question | C5: Answers | D5: Points | E5: Score
A6: 1 | B6: Has the number of Assistant Principals (APs), deans, and/or equivalent positions increased in the past five years? | C6: Yes, in proportion to increasing enrollment | D6: 10
C7: Yes, for other reasons | D7: 20
C8: No | D8: 0
A9: 2 | B9: Do elementary schools with fewer than 400 students have full-time APs, deans, and/or equivalent positions? | C9: Many schools | D9: 30
C10: Some schools | D10: 20
C11: Very few or no schools | D11: 0
C12: N/A - no elementary schools with fewer than 400 students | D12: 0
A13: 3 | B13: Do middle or high schools with fewer than 400 students have full-time APs, deans, and/or equivalent positions? | C13: Many schools | D13: 30
C14: Some schools | D14: 20
C15: Very few or no schools | D15: 0
C16: N/A - no middle or high schools with fewer than 400 students | D16: 0
D17: Free up Funds from School-Based Administrator Positions Subtotal | E17: =SUM(E6:E16) -> 0
A18: 4 | B18: At the elementary level, do APs, deans, and/or equivalent positions have responsibilities that less-highly credentialed staff could do, such as supervising bus drop off/ pick up, lunch, or clerical tasks? | C18: Often | D18: 40
C19: Sometimes | D19: 20
C20: Rarely, if ever | D20: 0
A21: 5 | B21: At the secondary level, to what extent do APs, deans, and/or equivalent positions complete educator evaluations and/or conduct observations and provide feedback to teachers? | C21: Often | D21: 0
C22: Sometimes | D22: 10
C23: Rarely, if ever | D23: 30
A24: 6 | B24: At the secondary level, are APs, deans, or equivalent positions strong academic and instructional leaders? | C24: Most | D24: 0
C25: Some | D25: 20
C26: Few | D26: 40
D27: Increase the Impact of Existing Positions Subtotal | E27: =SUM(E18:E26) -> 0
D28: Grand Total | E28: =SUM(E27,E17) -> 0

Sheet B23. Clerical
B1: SCREENING TOOL | E1: 23
B2: Can the district free up funds from clerical support positions?
B3: Effective clerical support allows schools and school districts to operate more efficiently and effectively. Due to older and/or inefficient systems, tools and/or processes, some districts have a higher level of clerical support than is needed or compared to other, similar districts. Some districts may have an opportunity to structure and staff clerical support differently to provide the same - or better - service with fewer staff. Note: Clerical support positions can look different from district to district. This screening is based on a relatively broad definition of clerical support positions. Clerical support positions in this instance are meant to include positions such as (but not necessarily limited to) school secretaries, administrative assistants, data entry staff, bookkeepers/bookkeeper assistants, payroll clerks, human resource support staff.
B4: Instructions: Answer the questions below about the district. For each one, there is a drop-down menu in the gray-shaded cell to its right. Please select the score that corresponds to the points for your answer choice. The scores will automatically sum at the bottom to give your total points.
B5: Question | C5: Answers | D5: Points | E5: Score
A6: 1 | B6: Over the past five years, have clerical positions been reduced in similar proportion to any reductions in teaching or administrative positions? | C6: There has been no reduction in teaching or administrative positions | D6: 0
C7: Yes, they have been reduced in proportion or greater proportion | D7: 0
C8: No, they have been reduced in smaller proportion | D8: 20
C9: Do not know | D9: 20
A10: 2 | B10: In addition to the school secretary, do elementary and middle schools have a full-time data clerk position? | C10: Most schools | D10: 20
C11: Many schools | D11: 10
C12: Few or no schools | D12: 0
A13: 3 | B13: Do central office department heads have their own full-time dedicated clerical support? | C13: Often | D13: 30
C14: Sometimes | D14: 20
C15: Rarely, if ever | D15: 0
A16: 4 | B16: Do clerical support staff enter student Individualized Education Plan (IEP) data into an electronic data system? | C16: Yes | D16: 20
C17: No | D17: 0
A18: 5 | B18: Do central office clerical support staff work through the summer? | C18: Yes, almost all | D18: 20
C19: Yes, some | D19: 10
C20: Very few or none | D20: 0
A21: 6 | B21: Do school clerical support staff work through the summer? | C21: Yes, almost all | D21: 40
C22: Yes, some | D22: 20
C23: Very few or none | D23: 0
A24: 7 | B24: Are school-based clerical staffing levels determined on a per-pupil basis? | C24: Yes | D24: 0
C25: No | D25: 10
C26: Do not know | D26: 10
A27: 8 | B27: Are clerical support staff funded through federal entitlement grants (e.g. Title I, Title II, IDEA, Vocational Education)? | C27: Yes, often | D27: 30
C28: Yes, sometimes | D28: 10
C29: Rarely, if ever | D29: 0
D30: Total points | E30: =SUM(E6:E29) -> 0

Sheet B24. Library
B1: SCREENING TOOL | E1: 24
B2: Can the district free up funds from library/ media specialist positions and/or increase the impact of existing positions?
B3: Library/ media specialists can play an important role in supporting teaching and learning, particularly in elementary reading. However, some districts may have an opportunity to free up funds from these positions, as library/ media specialists may be staffed at higher levels than are needed and/or spend limited time with groups of students. Districts that maximize library/ media specialists carefully match need to staffing level and often do not rely on a per-building allocation model. Additionally, some districts may have an opportunity to increase the impact of the positions, as library/media specialists may not play a strategic role in teaching and learning. Note: Library/ media specialist positions can look different from district to district. This screening is based on a relatively broad definition of library/ media specialist positions. Library/ media specialist positions in this instance are meant to include full-time professional staff, including positions such as librarians, library specialists, media specialists, etc.
B4: Instructions: Answer the questions below about the district. For each one, there is a drop-down menu in the gray-shaded cell to its right. Please select the score that corresponds to the points for your answer choice. The scores will automatically sum at the bottom to give your total points.
B6: Question | C6: Answer | D6: Points | E6: Score
A7: 1 | B7: Do elementary schools have a full-time library/ media specialist? | C7: Yes, most schools | D7: 20
C8: Yes, some schools | D8: 10
C9: Very few or no schools | D9: 0
A10: 2 | B10: At the secondary level, do schools have more than one certified library/ media specialist per building? | C10: Yes, most schools | D10: 20
C11: Yes, some schools | D11: 10
C12: Very few or none | D12: 0
A13: 3 | B13: Do elementary schools have a library aide in addition to a library/ media specialist? | C13: Almost always | D13: 20
C14: Often | D14: 10
C15: Sometimes | D15: 5
C16: Rarely, if ever | D16: 0
A17: 4 | B17: Do secondary schools have a library aide in addition to a library/ media specialist? | C17: Almost always | D17: 15
C18: Often | D18: 10
C19: Sometimes | D19: 5
C20: Rarely, if ever | D20: 0
A21: 5 | B21: During library periods at the elementary level, is there typically another teacher present, in addition to the library/ media specialist? | C21: Yes | D21: 10
C22: No | D22: 0
A23: 6 | B23: During library periods at the secondary level, is there typically another teacher present, in addition to the library/ media specialist? | C23: Yes | D23: 20
C24: No | D24: 0
A25: 7 | B25: At the elementary level, to what extent is the library used for independent student work, as opposed to group instruction led by a library/ media specialist? | C25: Almost always | D25: 20
C26: Often | D26: 10
C27: Sometimes | D27: 5
C28: Rarely, if ever | D28: 0
A29: 8 | B29: At the secondary level, to what extent is the library used for independent student work, as opposed to group instruction led by a library/ media specialist? | C29: Almost always | D29: 20
C30: Often | D30: 10
C31: Sometimes | D31: 5
C32: Rarely, if ever | D32: 0
D33: Free up Funds from Library/ Media Specialist Positions Subtotal | E33: =SUM(E7:E32) -> 0
A34: 9 | B34: At elementary and middle schools, are library/ media specialists certified positions? | C34: Yes | D34: 15
C35: No | D35: 0
A36: 10 | B36: At the elementary level, do library/ media specialists have an explicit role in the teaching of reading? | C36: Yes | D36: 0
C37: No | D37: 15
A38: 11 | B38: At the secondary level, to what extent is library/ media specialists' time dedicated to teaching classes or groups of students? | C38: Nearly all of their time | D38: 0
C39: More than half of their time | D39: 5
C40: Less than half of their time | D40: 15
D41: Increase the Impact of Existing Positions Subtotal | E41: =SUM(E34:E40) -> 0
D42: Grand total | E42: =SUM(E41,E33) -> 0

Sheet B25. Guidance
B1: SCREENING TOOL | E1: 25
B2: Can the district free up funds from guidance counselor positions?
B3: Guidance counselors play an important role in scheduling, college planning and placement, and providing other support for students, particularly at the secondary level. However, sometimes staffing allocation rules result in a higher level of guidance support than is needed or than other, similar districts have. As a result, some districts may have an opportunity to shift resources to other strategic priorities. In addition, some districts may be able to provide the same level of service or more effective services by changing the service delivery model. For example, at the elementary level, counseling support may be provided more effectively by social workers, who are highly trained in counseling children. Note: Guidance counselor positions can look different from district to district. This screening is based on a relatively narrow definition of guidance counselor positions. Guidance counselor positions in this instance are meant to include professional staff who primarily provide academic counseling support to students, including college counseling, course selection, etc. For the purposes of this tool, they are not meant to include professional staff who primarily provide mental health or other non-academic counseling support to students.
B4: Instructions: Answer the questions below about the district. For each one, there is a drop-down menu in the gray-shaded cell to its right. Please select the score that corresponds to the points for your answer choice. The scores will automatically sum at the bottom to give your total points.
B6: Question | C6: Answers | D6: Points | E6: Score
A7: 1 | B7: Do elementary schools have guidance counselors (rather than social workers)? | C7: Yes, most schools have guidance counselors rather than social workers | D7: 40
C8: Yes, some schools have guidance counselors rather than social workers | D8: 20
C9: No, elementary schools rarely have guidance counselors | D9: 0
C10: Many schools have both guidance counselors and social workers | D10: 40
C11: Some schools have both guidance counselors and social workers | D11: 20
A12: 2 | B12: At the secondary level, does the number of guidance counselors per school differ based on enrollment? | C12: Yes | D12: 0
C13: No, most schools have the same number regardless of enrollment | D13: 30
A14: 3 | B14: Do guidance counselors have a longer work year than teachers? | C14: Yes, most guidance counselors | D14: 20
C15: Yes, many guidance counselors | D15: 10
C16: Yes, some guidance counselors | D16: 5
C17: Few, if any | D17: 0
A18: 4 | B18: At the elementary level, can district leadership describe how the roles of the district's social workers and guidance counselors differ? | C18: Yes | D18: 0
C19: No | D19: 30
A20: 5 | B20: At the elementary level, do guidance counselors spend at least half their time directly working with students? | C20: Most of their time (>75%) | D20: 0
C21: Much of their time (50%-75%) | D21: 5
C22: Some of their time (25%-49%) | D22: 10
C23: Little of their time (<25%) | D23: 20
C24: Do not know | D24: 20
A25: 6 | B25: At the secondary level, do guidance counselors spend at least half their time directly working with students? | C25: Most of their time (>75%) | D25: 0
C26: Much of their time (50%-75%) | D26: 5
C27: Some of their time (25%-49%) | D27: 10
C28: Little of their time (<25%) | D28: 20
C29: Do not know | D29: 20
A30: 7 | B30: At the secondary level, do guidance counselors teach a multi-session guidance curriculum to students in a classroom setting? | C30: Yes, at most schools | D30: 0
C31: Yes, at some schools | D31: 10
C32: Rarely, if ever | D32: 20
D33: Total points | E33: =SUM(E7:E32) -> 0

Sheet B26. Absenteeism
B1: SCREENING TOOL | D1: 26
B2: Can the district free up funds associated with teacher absences?
B3: Teacher absenteeism can not only have a negative impact on student achievement, but it can also be very costly for districts. Substitute teacher salaries must be paid in addition to teacher salaries and other costs related to the recruitment and administration of substitute teachers can be high. Some districts have reduced teacher absenteeism and lowered costs by increasing accountability and/or providing incentives to teachers and principals for high attendance. In addition to freeing up funds, there are also other potential benefits to reducing teacher absenteeism, including higher student achievement associated with more time students spend with full-time classroom teachers as well as a reduction in administrative time devoted to managing substitute teachers. Note: This opportunity includes absences for personal days and sick days, but does not include absences associated with long-term leaves.
B4: Instructions: Answer the questions below about the district. For each one, there is a drop-down menu in the gray-shaded cell to its right. Please select the score that corresponds to the points for your answer choice. The scores will automatically sum at the bottom to give your total points.
B6: Question | C6: Answers | D6: Points | E6: Score
A7: 1 | B7: On average, what is the district's average daily teacher attendance rate? | C7: Greater than 98.0% | D7: 0
C8: Between 95.0% and 97.9% | D8: 10
C9: Between 92.0% and 94.9% | D9: 25
C10: Less than 92.0% | D10: 50
A11: 2 | B11: How often are teacher attendance data analyzed and reviewed by senior leadership? | C11: Once per year or less frequently | D11: 50
C12: At least quarterly | D12: 25
C13: At least monthly | D13: 10
C14: More than once per month | D14: 0
A15: 3 | B15: Typically, how often does senior leadership review teacher attendance data with principals? | C15: Once per year or less frequently | D15: 50
C16: At least quarterly | D16: 25
C17: At least monthly | D17: 10
C18: More than once per month | D18: 0
A19: 4 | B19: Does the district provide incentives to teachers related to attendance? | C19: Many | D19: 0
C20: Some | D20: 15
C21: Few, if any | D21: 30
A22: 5 | B22: Does the district provide rewards and/or consequences to principals based on teacher attendance? | C22: Many | D22: 0
C23: Some | D23: 15
C24: Few, if any | D24: 30
A25: 6 | B25: Are teachers required to provide detailed lesson plans to substitute teachers prior to absences and is that practice monitored by principals or other school leaders? | C25: Often | D25: 0
C26: Sometimes | D26: 15
C27: Rarely, if ever | D27: 30
A28: 7 | B28: How do teachers typically provide notification of absences? | C28: Call principal or assistant principal directly | D28: 0
C29: Email principal or assistant principal directly | D29: 10
C30: Call or email school secretary or clerk | D30: 20
C31: Call or email a districtwide contact | D31: 30
C32: Varies widely - no typical practice | D32: 30
D33: Total points | E33: =SUM(E7:E32) -> 0

Sheet B27. ELT
B1: SCREENING TOOL | D1: 27
B2: Can the district free up funds from extended school day and/or year programs?
B3: Some schools and districts have adopted extended school days and/or years as a core strategy in their efforts to improve student achievement. Most extended school day initiatives aim to provide one to two hours of additional time per day for student instruction. Others provide an extended school year of more than the typical 180 days. Extended school days and/or years can be very costly, particularly in terms of additional staff time. Some districts have realized the benefits of extended school days and/or years at a lower cost by staggering staff schedules and/or school calendars, seeking lower-cost partners, and paying for staff time strategically. Extended school day and/or year programs can look different from district to district. This opportunity includes programs that increase the amount of student learning time during the regular school day and/or year for some or all students in a given school and/or district, but does not include traditional forms of summer school.
B4: Instructions: Answer the questions below about the district. For each one, there is a drop-down menu in the gray-shaded cell to its right. Please select the score that corresponds to the points for your answer choice. The scores will automatically sum at the bottom to give your total points.
B6: Question | C6: Answers | D6: Points | E6: Score
A7: 1 | B7: Is the district paying staff to provide extended time for students beyond the regular school day and/or year? | C7: Yes, in many schools | D7: 50
C8: Yes, in some schools | D8: 20
C9: In a few or no schools | D9: 0
B10: If the answer to question 1 was "In a few or no schools," this opportunity does not apply to your district. Please continue to another opportunity.
A11: 2 | B11: In schools with extended school days and/or years, do all students participate in extended school time? | C11: Yes, in many schools with extended school time | D11: 30
C12: Yes, in some schools with extended school time | D12: 20
C13: Yes, in a few schools with extended school time | D13: 10
C14: In no schools | D14: 0
A15: 3 | B15: In schools with extended school days and/or years, do nearly all school-based staff stay during the additional time? | C15: Yes, in many schools with extended school time | D15: 40
C16: Yes, in some schools with extended school time | D16: 30
C17: Yes, in a few schools with extended school time | D17: 20
C18: In no schools | D18: 0
A19: 4 | B19: In schools with extended days, do all staff members who work a longer day start and end their work days at the same time? | C19: Yes, in many schools with extended school days | D19: 30
C20: Yes, in some schools with extended school days | D20: 20
C21: Yes, in a few schools with extended school days | D21: 10
C22: In no schools | D22: 0
C23: NA - do not provide extended school days | D23: 0
A24: 5 | B24: In schools with extended years, do all staff members who work a longer year have the same school calendar? | C24: Yes, in many schools with extended school years | D24: 30
C25: Yes, in some schools with extended school years | D25: 20
C26: Yes, in a few schools with extended school years | D26: 10
C27: In no schools | D27: 0
C28: NA - do not provide extended school years | D28: 0
A29: 6 | B29: For schools with extended school days and/or years, does the district regularly review partnerships with providers who support extended school days and/or years in an effort to identify lower-cost options? | C29: Yes | D29: 0
C30: No | D30: 20
C31: Do not know | D31: 20
C32: NA - do not utilize outside partners to provide extended school time | D32: 10
A33: 7 | B33: In schools with extended school days and/or years, how are staff who work extended school days and/or years compensated for the additional time? | C33: As an percentage of salary proportional to increase in time | D33: 10
C34: At an hourly rate equal to or greater than typical teacher's hourly rate | D34: 50
C35: At an hourly rate less than typical teacher's hourly rate | D35: 0
C36: NA - do not provide additional compensation | D36: 0
D37: Total points | E37: =SUM(E7:E36) -> 0

Sheet B28. Blended learning
B1: SCREENING TOOL | E1: 28
B2: Can the district free up funds from blended learning and/or online classes and/or increase the impact at little or no additional cost?
B3: Blended learning or online course offerings can increase individualization and access to content, but can be very expensive, depending upon how classes are staffed. Some districts have freed up funds from blended learning and/or online classes by increasing the student-to-teacher staffing ratio, utilizing paraprofessionals or aides to staff learning labs, and/or allowing students to complete some online courses outside of the school day. Some districts have also increased the impact of their blended learning offerings by closely monitoring students' progress, aligning it closely to core curriculum, and/or ensuring that only highly-skilled teachers facilitate blended learning. Note: Blended learning can look different from district to district. This opportunity focuses on the computer-assisted component(s) of districts' blended learning offerings.
B4: Instructions: Answer the questions below about the district. For each one, there is a drop-down menu in the gray-shaded cell to its right. Please select the score that corresponds to the points for your answer choice. The scores will automatically sum at the bottom to give your total points.
B6: Question | C6: Answers | D6: Points | E6: Score
A7: 1 | B7: Does the district have blended learning or online course offerings? | C7: Yes | D7: 40
C8: No | D8: 0
B9: If the answer to question 1 was "No," this opportunity does not apply to your district. Please continue to another opportunity.
A10: 2 | B10: Are class sizes for blended learning classes larger than traditional classes? | C10: Yes, they are larger | D10: 0
C11: No, they are the same | D11: 20
C12: No, they are smaller | D12: 30
A13: 3 | B13: Do online courses have a cap on enrollment? | C13: Yes, most online courses | D13: 20
C14: Yes, some online courses | D14: 10
C15: Few, if any | D15: 0
A16: 4 | B16: Do students have the option to take online courses outside of the regular school day or year? | C16: Yes, most online courses | D16: 0
C17: Yes, some online courses | D17: 10
C18: Few, if any | D18: 20
A19: 5 | B19: During the technology-assisted portion of blended learning classes, does a certified teacher employed by the district oversee students? | C19: Often | D19: 40
C20: Sometimes | D20: 20
C21: Rarely, if ever | D21: 0
A22: 6 | B22: While students are completing work for online courses, does a certified teacher employed by the district oversee students? | C22: Often | D22: 40
C23: Sometimes | D23: 20
C24: Rarely, if ever | D24: 0
D25: Free Up Funds from Blended Learning and/or Online Classes Subtotal | E25: =SUM(E7:E24) -> 0
A26: 7 | B26: Do classroom teachers closely monitor students' progress on the technology-assisted portion of blended learning? | C26: Often | D26: 0
C27: Sometimes | D27: 10
C28: Rarely, if ever | D28: 20
C29: NA - do not have blended learning classes | D29: 0
A30: 8 | B30: Are units of instruction in the technology-assisted portion of blended learning closely aligned to the district's curriculum? | C30: Often | D30: 0
C31: Sometimes | D31: 10
C32: Rarely, if ever | D32: 20
C33: NA - do not have blended learning classes | D33: 0
A34: 9 | B34: Does the technology-assisted portion of blended learning allow students to advance at their own pace, according to how long it takes them to master a standard or skill? | C34: Often | D34: 0
C35: Sometimes | D35: 10
C36: Rarely, if ever | D36: 20
C37: NA - do not have blended learning classes | D37: 0
A38: 10 | B38: How are teachers typically selected to staff blended learning courses? | C38: On a volunteer basis | D38: 10
C39: Previous assignment | D39: 20
C40: Student achievement data | D40: 0
C41: NA - do not have blended learning classes | D41: 0
D42: Increase the Impact of Blended Learning and/or Online Classes Subtotal | E42: =SUM(E26:E40) -> 0
D43: Total points | E43: =SUM(E25,E42) -> 0

Sheet B29. Ele class size
B1: SCREENING TOOL | D1: 29
B2: Can the district free up funds by managing class sizes differently at the elementary schools?
B3: Class size can be one of the largest drivers of school staffing, and therefore spending. Small changes in class sizes can have a huge impact on total spending. Some districts may have an opportunity to implement one or more of the following opportunities at the elementary level: 1. Better manage actual class sizes to existing class size targets: Most districts already have existing class size targets, but in reality, actual class size is often smaller than the targets in place. Raising actual class sizes to existing, pre-approved levels can help districts free up funds toward strategic priorities. 2. Selectively increase class sizes in elementary classrooms: Smaller class sizes do not necessarily raise student achievement. Increasing class sizes in elementary classrooms can have a significant impact on finances without having a negative impact on learning. 3. Selectively increase class sizes in specials classes: In many districts, special classes (e.g., art, music, PE) in elementary schools have the same or smaller class sizes as elementary classrooms. In other districts, two elementary classrooms go to the same specials class, resulting in much larger class sizes for specials classes. Depending on the type of special, three homeroom classes may be distributed between two specials classes. These selective increases in class sizes can free up significant funds for district priorities .
B4: Instructions: Answer the questions below about the district. For each one, there is a drop-down menu in the gray-shaded cell to its right. Please select the score that corresponds to the points for your answer choice. The scores will automatically sum at the bottom to give your total points.
B6: Question | C6: Answers | D6: Points | E6: Score
A7: 1 | B7: At the elementary level, does the district have class size targets, rules, or guidelines? | C7: Yes | D7: 0
C8: No | D8: 50
A9: 2 | B9: Is class size management taken into account when considering questions of school size and/or grade configuration? (As context, it is more difficult to manage existing class size targets in smaller schools and schools with more grades.) | C9: Yes | D9: 0
C10: No | D10: 20
C11: Do not know | D11: 20
A12: 3 | B12: At the elementary level, are teachers transferred to a different teaching assignment and/or school in the spring in order to better manage class size for the following school year? | C12: Often | D12: 0
C13: Sometimes | D13: 10
C14: Rarely, if ever | D14: 15
C15: Policy or contract prohibits this | D15: 0
A16: 4 | B16: At the elementary level, are teachers transferred to a different teaching assignment and/or school in order to better manage class size before the school year starts? | C16: Often | D16: 0
C17: Sometimes | D17: 10
C18: Rarely, if ever | D18: 15
C19: Policy or contract prohibits this | D19: 0
A20: 5 | B20: At the elementary level, are teachers transferred to a different teaching assignment and/or school in order to better manage class size after school has started? | C20: Often | D20: 0
C21: Sometimes | D21: 10
C22: Rarely, if ever | D22: 15
C23: Policy or contract prohibits this | D23: 0
A24: 6 | B24: At elementary schools, does the number of teachers in a given grade level or department change from year to year? | C24: Often | D24: 0
C25: Sometimes | D25: 50
C26: Rarely, if ever | D26: 100
D27: Managing to existing class size targets sub-total | E27: =SUM(E7:E26) -> 0
A28: 7 | B28: Has student enrollment decreased in the last five years? | C28: Yes, by more than 5% | D28: 40
C29: Yes, by between 2% and 5% | D29: 20
C30: No, or by less than 2% | D30: 0
A31: 8 | B31: Have elementary class size targets/guidelines for elementary classrooms been recently updated? | C31: Within the last year | D31: 0
C32: Between 2 and 5 years ago | D32: 20
C33: More than 5 years ago | D33: 40
C34: Do not know | D34: 40
A35: 9 | B35: At the elementary level, are there firm class size caps, such that the addition of one student over the cap would result in another classroom being required? | C35: Yes, often | D35: 50
C36: Yes, sometimes | D36: 25
C37: Rarely, if ever | D37: 0
A38: 10 | B38: Do class size guidelines or rules for elementary classrooms allow some classes to be appreciably bigger than others if the average class size is still within guidelines or rules? | C38: Yes | D38: 0
C39: No | D39: 50
A40: 11 | B40: Are 1st grade and 5th grade class size policies the same, such that classes in 5th grade cannot have X more students? | C40: Yes | D40: 50
C41: No | D41: 0
C42: Do not know | D42: 50
A43: 12 | B43: Do elementary principals place a very high priority on maintaining smaller class sizes? | C43: Most principals | D43: 50
C44: Some principals | D44: 25
C45: Few principals | D45: 0
D46: Increasing class sizes in elementary classrooms sub-total | E46: =SUM(E28:E45) -> 0
A47: 13 | B47: At the elementary level, do two or more classrooms combine for specials classes (e.g., art, music, PE)? | C47: Often | D47: 0
C48: Sometimes | D48: 20
C49: Rarely, if ever | D49: 50
A50: 14 | B50: Are different class sizes for elementary classrooms versus specials classes permitted under the existing collective bargaining agreement(s)? | C50: Yes | D50: 20
C51: No | D51: 0
C52: Do not know | D52: 20
D53: Increasing class sizes in specials classes sub-total | E53: =SUM(E47:E52) -> 0
D54: Total points | E54: =SUM(E27,E46,E53) -> 0

Sheet B30. Mid class size
B1: SCREENING TOOL | E1: 30
B2: Can the district increase class sizes at the middle schools?
B3: Class size can be one of the largest drivers of school staffing, and therefore spending. Small changes in class sizes can have a huge impact on total spending. Some districts may have an opportunity to implement one or more of the following opportunities at the middle school level: 1. Better manage actual class sizes to existing class size targets: Most districts already have existing class size targets, but in reality, actual class size is often smaller than the targets in place. Raising actual class sizes to existing, pre-approved levels can help districts free up funds toward strategic priorities. 2. Selectively increase class sizes in core classes: Smaller class sizes do not necessarily raise student achievement. Increasing class sizes in core classes can have a significant impact on finances without having a negative impact on learning. 3. Selectively increase class sizes in non-core classes: In many districts, non-core classes (e.g., art, music, PE) in middle schools have the same or smaller class sizes as core classes. In other districts, class sizes in non-core classes can be much higher than core classes. These selective increases in class sizes can free up significant funds for district priorities.
B4: Instructions: Answer the questions below about the district. For each one, there is a drop-down menu in the gray-shaded cell to its right. Please select the score that corresponds to the points for your answer choice. The scores will automatically sum at the bottom to give your total points. | F4: 0.05
B6: Question | C6: Answers | D6: Points | E6: Score | F6: Median (internal)
A7: 1 | B7: At the middle school level, does the district have class size targets, rules, or guidelines? | C7: Yes | D7: 0 | F7: =MEDIAN($D$7:$D$8) -> 25
C8: No | D8: 50
A9: 2 | B9: Is class size management taken into account when considering questions of school size and/or grade configuration? (As context, it is more difficult to manage to existing class size targets in smaller schools and schools with more grades.) | C9: Yes | D9: 0 | F9: =MEDIAN($D$9:$D$11) -> 10
C10: No | D10: 10
C11: Do not know | D11: 10
A12: 3 | B12: At the middle school level, do most schools utilize part-time teachers or teachers shared between schools? | C12: Yes, for many teaching and learning roles | D12: 0 | F12: =MEDIAN($D$12:$D$15) -> 25
C13: Yes, for support staff only | D13: 20
C14: No | D14: 30
C15: Do not know | D15: 30
A16: 4 | B16: At the middle school level, are teachers transferred to a different teaching assignment and/or school in the spring in order to better manage class size for the following school year? | C16: Often | D16: 0 | F16: =MEDIAN($D$16:$D$19) -> 5
C17: Sometimes | D17: 10
C18: Rarely, if ever | D18: 15
C19: Policy or contract prohibits this | D19: 0
A20: 5 | B20: At the middle school level, are teachers transferred to a different teaching assignment and/or school in order to better manage class size before the school year starts? | C20: Often | D20: 0 | F20: =MEDIAN($D$20:$D$23) -> 5
C21: Sometimes | D21: 10
C22: Rarely, if ever | D22: 15
C23: Policy or contract prohibits this | D23: 0
A24: 6 | B24: At the middle school level, are teachers transferred to a different teaching assignment and/or school in order to better manage class size after school has started? | C24: Often | D24: 0 | F24: =MEDIAN($D$24:$D$27) -> 5
C25: Sometimes | D25: 10
C26: Rarely, if ever | D26: 15
C27: Policy or contract prohibits this | D27: 0
A28: 7 | B28: At middle school level, does the number of teachers in a given grade level or department change from year to year? | C28: Often | D28: 0 | F28: =MEDIAN($D$28:$D$30) -> 50
C29: Sometimes | D29: 50
C30: Rarely, if ever | D30: 100
A31: 8 | B31: When determining staffing levels, does the district know the projected class size of middle school physical education courses? | C31: Often | D31: 0 | F31: =MEDIAN($D$31:$D$33) -> 10
C32: Sometimes | D32: 10
C33: Rarely, if ever | D33: 20
D34: Managing to existing class size targets sub-total | E34: =SUM(E7:E33) -> 0 | F34: =SUM(F7:F33) -> 135
A35: 9 | B35: Has student enrollment decreased in the last five years? | C35: Yes, by more than 5% | D35: 40 | F35: =MEDIAN($D$35:$D$37) -> 20
C36: Yes, by between 2% and 5% | D36: 20
C37: No, or by less than 2% | D37: 0
A38: 10 | B38: Have middle school class size targets/guidelines for core classes been recently updated? | C38: Within the last year | D38: 0 | F38: =MEDIAN($D$38:$D$41) -> 30
C39: Between 2 and 5 years ago | D39: 20
C40: More than 5 years ago | D40: 40
C41: Do not know | D41: 40
A42: 11 | B42: Do class size guidelines or rules for core classes allow some classes to be appreciably bigger than others if the average class size is still within guidelines or rules? | C42: Yes | D42: 0 | F42: =MEDIAN($D$42:$D$43) -> 25
C43: No | D43: 50
A44: 12 | B44: At the middle level, what type of class size guidelines or rules for core classes does the district use? | C44: Class size caps | D44: 50 | F44: =MEDIAN($D$44:$D$47) -> 37.5
C45: Average class size targets | D45: 25
C46: None | D46: 0
C47: Do not know | D47: 50
A48: 13 | B48: Can the district free up funds by managing class sizes differently at the middle school level? | C48: Often | D48: 30 | F48: =MEDIAN($D$48:$D$50) -> 20
C49: Sometimes | D49: 20
C50: Rarely, if ever | D50: 0
D51: Increasing class sizes in core classes sub-total | E51: =SUM(E35:E50) -> 0 | F51: =SUM(F35:F50) -> 132.5
A52: 14 | B52: At the middle school level, are class size guidelines, rules, or targets different for core and non-core classes? | C52: Yes | D52: 0 | F52: =MEDIAN($D$52:$D$55) -> 20
C53: No | D53: 40
C54: Do not know | D54: 40
C55: There are no guidelines/rules/targets | D55: 0
A56: 15 | B56: At the middle school level, are actual class sizes larger for non-core classes than core classes? | C56: Yes, most non-core classes | D56: 0 | F56: =MEDIAN($D$56:$D$59) -> 40
C57: Yes, some non-core classes | D57: 30
C58: Very few or none | D58: 50
C59: Do not know | D59: 50
A60: 16 | B60: At the middle school level, does the district have minimum enrollment policies for non-core classes (e.g., art, music, PE)? | C60: Yes | D60: 0 | F60: =MEDIAN($D$60:$D$62) -> 30
C61: Yes, for some grade levels and/or courses only | D61: 30
C62: No | D62: 50
A63: 17 | B63: Are different class sizes for core versus non-core classes permitted under the existing collective bargaining agreement(s)? | C63: Yes | D63: 20 | F63: =MEDIAN($D$63:$D$65) -> 20
C64: No | D64: 0
C65: Do not know | D65: 20
D66: Increasing class sizes in non-core classes sub-total | E66: =SUM(E52:E65) -> 0 | F66: =SUM(F52:F65) -> 110
D67: Total points | E67: =SUM(E34,E51,E66) -> 0 | F67: =SUM(F34,F51,F66) -> 377.5

Sheet B31. High class size
B1: SCREENING TOOL | E1: 31
B2: Can the district free up funds by managing class sizes differently at the high schools?
B3: Class size can be one of the largest drivers of school staffing, and therefore spending. Small changes in class sizes can have a huge impact on total spending. Some districts may have an opportunity to implement one or more of the following opportunities at the high school level: 1. Better manage actual class sizes to existing class size targets: Most districts already have existing class size targets, but in reality, actual class size is often smaller than the targets in place. Raising actual class sizes to existing, pre-approved levels can help districts free up funds toward strategic priorities. 2. Selectively increase class sizes in core classes: Smaller class sizes do not necessarily raise student achievement. Increasing class sizes in core classes can have a significant impact on finances without having a negative impact on learning. 3. Selectively increase class sizes in non-core classes: In many districts, non-core classes (e.g., art, music, PE) in high schools have the same or smaller class sizes as core classes. In other districts, class sizes in non-core classes can be much higher than core classes. These selective increases in class sizes can free up significant funds for district priorities.
B4: Instructions: Answer the questions below about the district. For each one, there is a drop-down menu in the gray-shaded cell to its right. Please select the score that corresponds to the points for your answer choice. The scores will automatically sum at the bottom to give your total points. | F4: 0.05
B6: Question | C6: Answers | D6: Points | E6: Score | F6: Meidan (internal)
A7: 1 | B7: At the high school level, does the district have class size targets, rules, or guidelines? | C7: Yes | D7: 0 | F7: =MEDIAN($D$7:$D$8) -> 25
C8: No | D8: 50
A9: 2 | B9: Is class size management taken into account when considering questions of school size and/or grade configuration? (As context, it is more difficult to manage to existing class size targets in smaller schools and schools with more grades.) | C9: Yes | D9: 0 | F9: =MEDIAN($D$9:$D$11) -> 10
C10: No | D10: 10
C11: Do not know | D11: 10
A12: 3 | B12: At the high school level, do most schools utilize part-time teachers or teachers shared between schools? | C12: Yes, for many teaching and learning roles | D12: 0 | F12: =MEDIAN($D$12:$D$15) -> 25
C13: Yes, for support staff only | D13: 20
C14: No | D14: 30
C15: Do not know | D15: 30
A16: 4 | B16: At the high school level, are teachers transferred to a different teaching assignment and/or school in the spring in order to better manage class size for the following school year? | C16: Often | D16: 0 | F16: =MEDIAN($D$16:$D$19) -> 5
C17: Sometimes | D17: 10
C18: Rarely, if ever | D18: 15
C19: Policy or contract prohibits this | D19: 0
A20: 5 | B20: At the high school level, are teachers transferred to a different teaching assignment and/or school in order to better manage class size before the school year starts? | C20: Often | D20: 0 | F20: =MEDIAN($D$20:$D$23) -> 5
C21: Sometimes | D21: 10
C22: Rarely, if ever | D22: 15
C23: Policy or contract prohibits this | D23: 0
A24: 6 | B24: At the high school level, are teachers transferred to a different teaching assignment and/or school in order to better manage class size after school has started? | C24: Often | D24: 0 | F24: =MEDIAN($D$24:$D$27) -> 5
C25: Sometimes | D25: 10
C26: Rarely, if ever | D26: 15
C27: Policy or contract prohibits this | D27: 0
A28: 7 | B28: At high school level, does the number of teachers in a given grade level or department change from year to year? | C28: Often | D28: 0 | F28: =MEDIAN($D$28:$D$30) -> 50
C29: Sometimes | D29: 50
C30: Rarely, if ever | D30: 100
A31: 8 | B31: When determining staffing levels, does the district know the projected class size of high school physical education courses? | C31: Often | D31: 0 | F31: =MEDIAN($D$31:$D$33) -> 10
C32: Sometimes | D32: 10
C33: Rarely, if ever | D33: 20
D34: Managing to existing class size targets sub-total | E34: =SUM(E7:E33) -> 0 | F34: =SUM(F7:F33) -> 135
A35: 9 | B35: Has student enrollment decreased in the last five years? | C35: Yes, by more than 5% | D35: 40 | F35: =MEDIAN($D$35:$D$37) -> 20
C36: Yes, by between 2% and 5% | D36: 20
C37: No, or by less than 2% | D37: 0
A38: 10 | B38: Have high school class size targets/guidelines for core classes been recently updated? | C38: Within the last year | D38: 0 | F38: =MEDIAN($D$38:$D$41) -> 30
C39: Between 2 and 5 years ago | D39: 20
C40: More than 5 years ago | D40: 40
C41: Do not know | D41: 40
A42: 11 | B42: Do class size guidelines or rules for core classes allow some classes to be appreciably bigger than others if the average class size is still within guidelines or rules? | C42: Yes | D42: 0 | F42: =MEDIAN($D$42:$D$43) -> 25
C43: No | D43: 50
A44: 12 | B44: At the high school level, does the district have minimum class size enrollment policies for core courses, such that a class would not be offered if fewer than X students sign up? | C44: Yes | D44: 0 | F44: =MEDIAN($D$44:$D$46) -> 20
C45: Yes, for some grade levels and/or courses only | D45: 20
C46: No | D46: 50
A47: 13 | B47: At the high level, what type of class size guidelines or rules for core classes does the district use? | C47: Class size caps | D47: 50 | F47: =MEDIAN($D$47:$D$50) -> 37.5
C48: Average class size targets | D48: 25
C49: None | D49: 0
C50: Do not know | D50: 50
A51: 14 | B51: At the high school level, are the actual class sizes in Advanced Placement and other higher-level courses smaller than in other academic courses? | C51: Often | D51: 30 | F51: =MEDIAN($D$51:$D$53) -> 20
C52: Sometimes | D52: 20
C53: Rarely, if ever | D53: 0
D54: Increasing class sizes in core classes sub-total | E54: =SUM(E35:E53) -> 0 | F54: =SUM(F35:F53) -> 152.5
A55: 15 | B55: At the high school level, are class size guidelines, rules, or targets different for core and non-core classes? | C55: Yes | D55: 0 | F55: =MEDIAN($D$55:$D$58) -> 20
C56: No | D56: 40
C57: Do not know | D57: 40
C58: There are no guidelines/rules/targets | D58: 0
A59: 16 | B59: At the high school level, are actual class sizes larger for non-core classes than core classess? | C59: Yes, most non-core classes | D59: 0 | F59: =MEDIAN($D$59:$D$62) -> 40
C60: Yes, some non-core classes | D60: 30
C61: Very few or none | D61: 50
C62: Do not know | D62: 50
A63: 17 | B63: At the high school level, does the district have minimum enrollment policies for non-core classes (e.g., art, music, PE)? | C63: Yes | D63: 0 | F63: =MEDIAN($D$63:$D$65) -> 30
C64: Yes, for some grade levels and/or courses only | D64: 30
C65: No | D65: 50
A66: 18 | B66: Are different class sizes for core versus non-core classes permitted under the existing collective bargaining agreement(s)? | C66: Yes | D66: 20 | F66: =MEDIAN($D$66:$D$68) -> 20
C67: No | D67: 0
C68: Do not know | D68: 20
D69: Increasing class sizes in non-core classes sub-total | E69: =SUM(E55:E68) -> 0 | F69: =SUM(F55:F68) -> 110
D70: Total points | E70: =SUM(E34,E54,E69) -> 0 | F70: =SUM(F34,F54,F69) -> 397.5

Sheet C. Screening Summary
C1: Screening Summary
A3: For summing | C3: Category | D3: # | E3: Opportunity | F3: Total Screening Points | G3: Relative Size of Opportunity | H3: Would you like to complete a preliminary light-touch sizing analysis for this opportunity? | K3: Range | L3: Relative size of opportunity
A4: 1 | C4: Reducing operational costs | D4: 1 | E4: Can the district free up funds from general education transportation? | F4: ='B1. Transportation'!E31 -> 0 | G4: =IF(F4<50,$N$6,IF(AND(F4<75,F4>=50),$N$7,IF(AND(F4<200,F4>=75),$N$8,IF(AND(F4<300,F4>=200),$N$9,IF(AND(F4<400,F4>=300),$N$10,IF(F4>400,$N$11,"ERROR")))))) -> Not worth exploring | K4: 0-49 | L4: Not worth exploring
A5: 1 | D5: 2 | E5: Can the district free up funds from energy expenditures? | F5: ='B2. Energy'!E30 -> 0 | G5: Not worth exploring | K5: 50-74 | L5: Might be worth exploring | M5: Key: Relative Size of Opportunity
A6: 1 | D6: 3 | E6: Can the district free up funds from maintenance services? | F6: ='B3. Maintenance'!E18 -> 0 | G6: Not worth exploring | K6: 75-99 | L6: Worth exploring | M6: 0-49 points | N6: Not worth exploring
A7: 1 | D7: 4 | E7: Can the district free up funds from custodial services? | F7: ='B4. Custodial'!E23 -> 0 | G7: Not worth exploring | K7: 100-199 | L7: Small relative opportunity | M7: 50-74 points | N7: Might be worth exploring further
A8: 1 | D8: 5 | E8: Can the district free up funds from food services? | F8: ='B5. Food services'!E35 -> 0 | G8: Not worth exploring | K8: 200-299 | L8: Significant relative opportunity | M8: 75-199 points | N8: Worth exploring
A9: 1 | D9: 6 | E9: Can the district free up funds from classroom and other instructional technology? | F9: ='B6. IT'!E35 -> 0 | G9: Not worth exploring | K9: 300-399 | L9: Large relative opportunity | M9: 200-299 points | N9: Worth exploring
A10: 1 | C10: Rethinking service delivery models for students who struggle | D10: 7 | E10: Can the district address mild special needs differently? | F10: ='B7. Mild special needs'!E42 -> 0 | G10: Not worth exploring | K10: 400 + | L10: Very large relative opportunity | M10: 300-399 points | N10: Worth exploring
A11: 1 | D11: 8 | E11: Can the district free up funds from paraprofessional positions? | F11: ='B8. Paras'!E26 -> 0 | G11: Not worth exploring | M11: 400+ points | N11: Worth exploring
A12: 1 | D12: 9 | E12: Can the district free up funds by increasing the impact of intervention teaching positions? | F12: ='B9. Intervention'!E43 -> 0 | G12: Not worth exploring
A13: 1 | D13: 10 | E13: Can the district free up funds from special education teaching positions? | F13: ='B10. Sped teachers'!E31 -> 0 | G13: Not worth exploring
A14: 1 | D14: 11 | E14: Can the district free up funds from speech and language therapist positions? | F14: ='B11. SLPs'!E24 -> 0 | G14: Not worth exploring
A15: 1 | D15: 12 | E15: Can the district increase the impact of Title I spending? | F15: ='B12. Title I'!E49 -> 0 | G15: Not worth exploring
A16: 1 | D16: 13 | E16: Can the district free up funds by reducing reliance on out-of-district special education placements? | F16: ='B13. OOD'!E37 -> 0 | G16: Not worth exploring
A17: 1 | D17: 14 | E17: Can the district free up funds by reducing its reliance on alternative schools for students with behavioral challenges? | F17: ='B14. Alt schools'!E30 -> 0 | G17: Not worth exploring
A18: 1 | C18: Maximizing revenue | D18: 15 | E18: Can the district increase state and federal funding by maximizing free and reduced-priced meals enrollment? | F18: ='B15. FARM'!E38 -> 0 | G18: Not worth exploring
A19: 1 | D19: 16 | E19: Can the district increase federal Medicaid reimbursement for health-related student services? | F19: ='B16. MEDICAID'!E29 -> 0 | G19: Not worth exploring
A20: 1 | C20: Boosting the impact and cost-effectiveness of professional development for teachers | D20: 17 | E20: Can the district free up funds from professional development expenditures? | F20: ='B17. PD '!E30 -> 0 | G20: Not worth exploring
A21: 1 | D21: 18 | E21: Can the district provide more professional development opportunities for core teachers at little or no additional cost? | F21: ='B18. No-cost PD'!E41 -> 0 | G21: Not worth exploring
A22: 1 | D22: 19 | E22: Can the district increase the impact of the coaching model at little to no additional cost? | F22: ='B19. Coaching impact'!E49 -> 0 | G22: Not worth exploring
A23: 1 | D23: 20 | E23: Can the district free up funds from instructional coaching positions? | F23: ='B20. Free funds coaching'!E22 -> 0 | G23: Not worth exploring
A24: 1 | C24: Examining staffing levels of non-instructional staff | D24: 21 | E24: Can the district free up funds from central office spending? | F24: ='B21. Central office'!E19 -> 0 | G24: Not worth exploring
A25: 1 | D25: 22 | E25: Can the district free up funds from school-based administrator positions and/or increase the impact of existing positions? | F25: ='B22. Building admins'!E28 -> 0 | G25: Not worth exploring
A26: 1 | D26: 23 | E26: Can the district free up funds from clerical support positions? | F26: ='B23. Clerical'!E30 -> 0 | G26: Not worth exploring
A27: 1 | D27: 24 | E27: Can the district free up funds from library/media specialist positions and/or increase the impact of existing positions? | F27: ='B24. Library'!E42 -> 0 | G27: Not worth exploring
A28: 1 | D28: 25 | E28: Can the district free up funds from guidance counselor positions? | F28: ='B25. Guidance'!E33 -> 0 | G28: Not worth exploring
A29: 1 | C29: Using instructional time more cost-effectively | D29: 26 | E29: Can the district free up funds associated with teacher absences? | F29: ='B26. Absenteeism'!E33 -> 0 | G29: Not worth exploring
A30: 1 | D30: 27 | E30: Can the district free up funds from extended school day and/or year programs? | F30: ='B27. ELT'!E37 -> 0 | G30: Not worth exploring
A31: 1 | D31: 28 | E31: Can the district free up funds from blended learning and/or online classes and/or increase the impact at little or no additional cost? | F31: ='B28. Blended learning'!E43 -> 0 | G31: Not worth exploring
A32: 1 | C32: Managing class size | D32: 29 | E32: Can the district free up funds by managing class sizes differently at the elementary schools? | F32: ='B29. Ele class size'!E54 -> 0 | G32: Not worth exploring | H32: Click Here to Download the Separate Class Size Tool
A33: 1 | D33: 30 | E33: Can the district free up funds by managing class sizes differently at the middle schools? | F33: ='B30. Mid class size'!E67 -> 0 | G33: Not worth exploring | H33: Click Here to Download the Separate Class Size Tool
A34: 1 | D34: 31 | E34: Can the district free up funds by managing class sizes differently at the high schools? | F34: ='B31. High class size'!E70 -> 0 | G34: Not worth exploring | H34: Click Here to Download the Separate Class Size Tool

Sheet D. Sizing Tools Introduction
B11: Introduction
B12: Overview | C12: The goal of the Sizing Tools is to roughly estimate the financial impact of high-potential opportunities that were identified using the Screening Tools. They can also help to create momentum for deeper analysis. The Sizing Tools can help districts conduct a "shallow dive" of high-potential opportunities, using relatively easy-to-gather data. They can also help to create momentum for deeper analysis, especially for opportunities that would otherwise be overlooked due to misconceptions about their potential financial impact. Rough estimates of potential financial impact are based on benchmarking, best practice, and the experiences of other districts who have implemented the opportunities. There are two main types of resource reallocation opportunities that the Sizing Tools can help estimate: 1. Can the district free up funds for its strategic priorities? 2. Can the district increase the impact of current spending at little or no additional cost, thus reducing the need to free up funds for priorities? Some opportunities are a combination of both. The Sizing Tools can identify opportunities that are worth further analysis, but are not intended to replace a "deep dive." More rigorous analysis is required to accurately size the potential financial impact of the most promising opportunities.
B13: What will you get out of this activity? | C13: An understanding of which three to six potential opportunities are worthy of a more detailed, rigorous analysis, because they have the highest potential financial impact.
B14: When should you do this activity? | C14: The Sizing Tools are intended as a follow up to the Screening Tools. After districts have identified high-potential opportunities using the Screening Tools, districts may complete the Sizing Tools that correspond to those high-potential opportunities.
B15: How long will it take to complete? | C15: Each Sizing Tool may take two to four hours to complete, and will require collecting data that is easily accessible for most districts.
B16: Who should be involved? | C16: The Chief Financial Officer should coordinate the use of the Sizing Tools, seeking input and data from knowledgeable parties. For example, a Sizing Tools that aims to estimate the opportunity "Can the district increase state and federal funding by maximizing free and reduced-priced meals enrollment?" would likely require the Chief Financial Officer to work with the head of federal programs and the "second-in-command" to gather the needed data and complete the tool.
B17: Notes & Caveats | C17: Some of the opportunities include benchmarking analysis. In most cases, the benchmarking is based on large districts (over 25,000 students) with high poverty. A deeper dive should include benchmarking analysis tailored to districts' particular characteristics and locations. The estimates derived from the Sizing Tools do not reflect collective bargaining agreements, state regulations, state and local policies and procedures, or other district-specific factors that may limit the potential financial impact of the opportunity. These factors should be considered in a deep dive.

Sheet D1. Transportation (hidden)
B1: SIZING TOOL | C1: 1
B2: Can the district free up funds from general education transportation?
B3: Note: The Sizing Tools can identify opportunities that are worth further analysis, but are not intended to replace a "deep dive." More rigorous analysis is required to accurately estimate the potential financial impact of the most promising opportunities.
B4: Instructions: Please fill in all yellow-shaded areas. (They are currently filled in with example data.) Blue-shaded areas calculate automatically and green-shaded areas are hard-coded benchmarks
B6: Part 1. Input data
B7: Total number of buses | C7: 100
B8: Total number of daily runs (morning and afternoon) | C8: 200
B9: Total annual spending on buses | C9: 6000000
B11: Part 2. Compare transportation costs to other districts and estimate funds freed up
B12: Cost per bus | C12: =ROUND(C9/C7, -3) -> 60000
B13: Cost per bus in other districts | C13: 50000
B14: Estimated funds freed up by matching cost per bus in other districts | C14: =ROUND((C12*C7)-(C13*C7), -5) -> 1000000
B16: Part 3. Compare number of daily runs to other districts and estimate funds freed up
B17: Daily runs per bus | C17: =C8/C7 -> 2
B18: Daily runs per bus in other districts | C18: 4
B19: Multiple | C19: =1-(C17/C18) -> 0.5
B20: Estimated maximum funds freed up by matching daily runs per bus in other districts | C20: =ROUND((C19*C9), -5) -> 3000000
B23: Notes: (1) Funds freed up may be less depending on the structure of compensation to drivers as well as other state or local factors; (2) Only include general education transportation in this analysis
EA24: 142
B25: Source: Council for Great City Schools, Managing for Results 2012 | DY25: 143
FL26: 144
FN27: 145
DY28: 146
EW29: 147
DJ30: 148
DC31: 149
EB32: 150
DB33: 151

Sheet D2. Energy (hidden)
B1: SIZING TOOL | C1: 2
B2: Can the district free up funds from energy expenditures? | E2: Key: Percent potential reduction based on screening tool points (FOR INTERNAL USE ONLY)
B3: Note: The Sizing Tools can identify opportunities that are worth further analysis, but are not intended to replace a "deep dive." More rigorous analysis is required to accurately estimate the potential financial impact of the most promising opportunities. | E3: 0-49 points | F3: 0
B4: Instructions: Please fill in all yellow-shaded areas. (They are currently filled in with example data.) Blue-shaded areas calculate automatically and green-shaded areas are hard-coded benchmarks | E4: 50-74 points | F4: 0.04
E5: 75-99 points | F5: 0.06
B6: Part 1. Input data | E6: 100-149 points | F6: 0.08
B7: Total points from Screening Tool | C7: ='B2. Energy'!E30 -> 0 | E7: 150 or more points | F7: 0.1
B8: Last year's total energy costs | C8: 10000
B10: Part 2. Assess potential opportunity to free up funds
B11: Percent potential opportunity to free up funds from energy expenditures, based on Screening Tool score | C11: =(IF(C7<50,F3,IF(C7<75,F4,IF(C7<100,F5,IF(C7<150,F6,IF(C7>149,F7,"")))))) -> 0
B13: Part 3. Estimate funds freed up
B14: Estimated funds freed up from energy expenditures | C14: =ROUND(C11*C8, -4) -> 0
B16: Note: This opportunity includes all energy expenditures, including heating, cooling, gas, and electricity use.

Sheet D3. Maintenance (hidden)
B1: SIZING TOOL | C1: 3
B2: Can the district free up funds from maintenance services?
B3: Note: The Sizing Tools can identify opportunities that are worth further analysis, but are not intended to replace a "deep dive." More rigorous analysis is required to accurately estimate the potential financial impact of the most promising opportunities.
B4: Instructions: Please fill in all yellow-shaded areas. (They are currently filled in with example data.) Blue-shaded areas calculate automatically and green-shaded areas are hard-coded benchmarks
B6: Part 1. Input data
B7: Total student enrollment | D7: 50000
B8: Last year's total operating expenditures | D8: 450000000
B9: Last year's total maintenance expenditures | D9: 16500000
B11: Part 2. Compare maintenance expenditures to other districts
B12: Maintenance expenditures as a percent of total operating expenditures | D12: =D9/D8 -> 0.03666666667
C13: Benchmark #1 Median of other districts | D13: Benchmark #2: Leaner district benchmark
B14: Maintenance expenditures as a percent of total operating expenditures in other districts | C14: 0.03444444444 | D14: 0.027
B15: Estimated maintenance expenditures if the district's maintenance expenditures as a percent of total operating expenditures matched each of two benchmarks | C15: =ROUND(C14*$D$8, -5) -> 15500000 | D15: =ROUND(D14*$D$8, -5) -> 12200000
B17: Part 3. Estimate funds freed up
B18: Estimated funds freed up by matching either of the benchmarks | C18: =IF(D9-C15<0, 0, D9-C15) -> 1000000 | D18: =IF(D9-D15<0, 0, D9-D15) -> 4300000
B20: Source: "Managing for Results," Council of Great City Schools, 2012

Sheet D4. Custodial (hidden)
B1: SIZING TOOL | C1: 4
B2: Can the district free up funds from custodial services?
B3: Note: The Sizing Tools can identify opportunities that are worth further analysis, but are not intended to replace a "deep dive." More rigorous analysis is required to accurately estimate the potential financial impact of the most promising opportunities.
B4: Instructions: Please fill in all yellow-shaded areas. (They are currently filled in with example data.) Blue-shaded areas calculate automatically and green-shaded areas are hard-coded benchmarks
B6: Part 1. Input data
B7: Total student enrollment | D7: 50000
B8: Last year's total operating expenditures | D8: 450000000
B9: Last year's total custodial expenditures | D9: 17000000
B11: Part 2. Compare custodial expenditures to other districts
B12: Custodial expenditures as a percent of total operating expenditures | D12: =D9/D8 -> 0.03777777778
C13: Benchmark #1 Median of other districts | D13: Benchmark #2: Leaner district benchmark
B14: Custodial expenditures as a percent of total operating expenditures in other districts | C14: 0.03444444444 | D14: 0.027
B15: Estimated custodial expenditures if the district's custodial expenditures as a percent of total operating expenditures matched either of the two benchmarks | C15: =ROUND(C14*$D$8, -5) -> 15500000 | D15: =ROUND(D14*$D$8, -5) -> 12200000
B17: Part 3. Estimate funds freed up
B18: Estimated funds freed up by matching either of the two benchmarks | C18: =IF(D9-C15<0, 0, D9-C15) -> 1500000 | D18: =IF(D9-D15<0, 0, D9-D15) -> 4800000
B20: Source: "Managing for Results," Council of Great City Schools, 2012

Sheet D5. Food services (hidden)
B1: SIZING TOOL | C1: 5
B2: Can the district free up funds from food services? | E2: Key: Percent potential reduction based on screening tool points (FOR INTERNAL USE ONLY)
B3: Note: The Sizing Tools can identify opportunities that are worth further analysis, but are not intended to replace a "deep dive." More rigorous analysis is required to accurately estimate the potential financial impact of the most promising opportunities. | E3: 0-49 points | F3: 0
B4: Instructions: Please fill in all yellow-shaded areas. (They are currently filled in with example data.) Blue-shaded areas calculate automatically and green-shaded areas are hard-coded benchmarks | E4: 50-74 points | F4: 0.025
E5: 75-99 points | F5: 0.05
B6: Part 1. Input data | E6: 100 or more points | F6: 0.1
B7: Total points from Screening Tool | C7: ='B5. Food services'!E35 -> 0
B8: Last year's total annual food services revenue | C8: 20000000
B9: Last year's total expenditures related to food services, including capital expenditures, staffing and supervision costs, central office management costs, etc. | C9: 21250000
B11: Part 2. Estimate funds freed up by bringing expenditures in line with revenue
B12: Estimated funds freed up by bringing expenditures in line with revenue | C12: =IF(C9-C8<0, 0, C9-C8) -> 1250000
B14: Part 3. Assess further opportunity to free up funds
B15: Percent potential opportunity to free up additional funds from food services, based on Screening Tool score | C15: =(IF(C7<50,F3,IF(C7<75,F4,IF(C7<100,F5,IF(C7>99,F6,""))))) -> 0
B16: Estimated additional potential funds freed up from food services | C16: =ROUND(C15*C8, -4) -> 0

Sheet D6. IT (hidden)
B1: SIZING TOOL | C1: 6
B2: Can the district free up funds from classroom and other instructional technology? | E2: Key: Percent potential reduction based on screening tool points (FOR INTERNAL USE ONLY)
B3: Note: The Sizing Tools can identify opportunities that are worth further analysis, but are not intended to replace a "deep dive." More rigorous analysis is required to accurately estimate the potential financial impact of the most promising opportunities. | E3: 0-49 points | F3: 0
B4: Instructions: Please fill in all yellow-shaded areas. (They are currently filled in with example data.) Blue-shaded areas calculate automatically and white-shaded areas are hard-coded benchmarks | E4: 50-74 points | F4: 0.05
E5: 75-99 points | F5: 0.1
B6: Part 1. Input data | E6: 100 or more points | F6: 0.15
B7: Total points from Screening Tool | C7: ='B6. IT'!$E$35 -> 0
B8: Last year's total expenditures on instructional technology (all sources) | C8: 10000000
B10: Part 2. Assess potential opportunity to free up funds
B11: Percent potential opportunity to free up funds from instructional technology, based on Screening Tool score | C11: =(IF(C7<50,F3,IF(C7<75,F4,IF(C7<100,F5,IF(C7>99,F6,""))))) -> 0
B13: Part 3. Estimate funds freed up
B14: Estimated funds freed up from instructional technology | C14: =ROUND(C11*C8, -4) -> 0
B16: Notes: (1) For the purposes of this tool, instructional technology refers to all hardware and software devoted to enhancing teaching and learning in and outside the classroom as well as associated maintenance and support costs (e.g., computer labs, remediation and intervention software, computer-based learning programs, online resources used by students, mobile devices for students and teachers, staff time devoted to set up, maintenance, and support of instructional technology tools and software). It does NOT include core infrastructure such as repair/maintenance or Wi-Fi bandwidth, or hardware and software used primarily for administrative purposes such as email, ERP, finance, HR, payroll, or student information systems. It also does not include related professional development costs for either administrative or instructional uses of technology. (2) Include instructional technology expenditures from all sources, including capital and grant budgets

Sheet D7. Mild special needs (hidden)
B1: SIZING TOOL | C1: 7
B2: Can the district address mild special needs differently?
B3: Note: The Sizing Tools can identify opportunities that are worth further analysis, but are not intended to replace a "deep dive." More rigorous analysis is required to accurately estimate the potential financial impact of the most promising opportunities.
B4: Instructions: Please fill in all yellow-shaded areas. (They are currently filled in with example data.) Blue-shaded areas calculate automatically and green-shaded areas are hard-coded benchmarks
B6: Part 1. Input data
B7: State (please select from the drop-down menu) | C7: Arizona
B8: Total student enrollment | C8: 50000
B9: Total expenditures (all sources) | C9: 650000000
B10: District special education identification rate | C10: 0.17
B11: Per-pupil expenditures | C11: =ROUND(C9/C8, -3) -> 13000
B13: Part 2. Compare district special education identification rate with state identification rate
B14: Approximate number of students identified for special education services in the district (based on total student enrollment times district identification rate) | C14: =ROUND(C10*C8, -1) -> 8500
B15: Estimated number of students identified for special education services if the district identification rate matched that of the state, adjusted for high-poverty districts | C15: =ROUND(C19*C8, -1) -> 7740
B16: Estimated reduction in students identified for special education services if special education identification rate matched state (number of students) | C16: =IF(C14-C15<0, 0, C14-C15) -> 760
B18: Part 3. Estimate funds freed up
B19: State identification rate, adjusted for high-poverty districts | C19: =IFERROR(VLOOKUP(C7, $C$30:$E$80, 3, FALSE), "") -> 0.1547672335
B20: Estimated average additional cost per student with IEP (national) | C20: 5000
B21: Estimated average cost per student without IEP | C21: 12500
B22: District est. average additional cost per students with IEP, adjusted for per-pupil spending | C22: =(C20*C11)/C21 -> 5200
B23: Estimated funds freed up by addressing mild special needs differently | C23: =ROUND(C22*C16, -5) -> 4000000
B25: Notes: (1) Estimated savings are adjusted for per-pupil spending; (2) Analysis assumes that addressing mild special needs differently through improved early intervention support and clearer eligibility criteria would allow a district to reduce the number of students requiring special education services; (3) For the purposes of this analysis, the state special education identification rate has been adjusted for high-poverty districts. Lower-poverty districts may have an even greater opportunity to reduce the number of students requiring special education services.
D29: Number and percentage of children served under Individuals with Disabilities Education Act | E29: 15% greater than ID rate
C30: State | D30: 0.1089084537 | E30: =(D30+(D30*0.15)) -> 0.1252447217
C31: Alabama | D31: 0.136619633 | E31: =(D31+(D31*0.15)) -> 0.157112578
C32: Alaska | D32: 0.1173929392 | E32: 0.1350018801
C33: Arizona | D33: 0.134580203 | E33: 0.1547672335
C34: Arkansas | D34: 0.106871081 | E34: 0.1229017432
C35: California | D35: 0.1004487049 | E35: 0.1155160106
C36: Colorado | D36: 0.1216082177 | E36: 0.1398494504
C37: Connecticut | D37: 0.14379883 | E37: 0.1653686545
C38: Delaware | D38: 0.1675972168 | E38: 0.1927367993
C39: District of Columbia | D39: 0.1395231122 | E39: 0.160451579
C40: Florida | D40: 0.1058657764 | E40: 0.1217456428
C41: Georgia | D41: 0.1097766716 | E41: 0.1262431724
C42: Hawaii | D42: 0.09803921569 | E42: 0.112745098
C43: Idaho | D43: 0.1449054193 | E43: 0.1666412322
C44: Illinois | D44: 0.1585828164 | E44: 0.1823702389
C45: Indiana | D45: 0.1381695326 | E45: 0.1588949624
C46: Iowa | D46: 0.1382527636 | E46: 0.1589906781
C47: Kansas | D47: 0.1520810307 | E47: 0.1748931852
C48: Kentucky | D48: 0.1190755113 | E48: 0.136936838
C49: Louisiana | D49: 0.1706236084 | E49: 0.1962171496
C50: Maine | D50: 0.1214370619 | E50: 0.1396526212
C51: Maryland | D51: 0.1753165411 | E51: 0.2016140223
C52: Massachusetts | D52: 0.1379632996 | E52: 0.1586577945
C53: Michigan | D53: 0.1465925729 | E53: 0.1685814588
C54: Minnesota | D54: 0.1305496549 | E54: 0.1501321031
C55: Mississippi | D55: 0.1384158222 | E55: 0.1591781955
C56: Missouri | D56: 0.118290953 | E56: 0.1360345959
C57: Montana | D57: 0.1484053601 | E57: 0.1706661642
C58: Nebraska | D58: 0.1099808075 | E58: 0.1264779286
C59: Nevada | D59: 0.1536636348 | E59: 0.17671318
C60: New Hampshire | D60: 0.1654146596 | E60: 0.1902268585
C61: New Jersey | D61: 0.137861482 | E61: 0.1585407042
C62: New Mexico | D62: 0.16619725 | E62: 0.1911268376
C63: New York | D63: 0.1241824628 | E63: 0.1428098322
C64: North Carolina | D64: 0.136727469 | E64: 0.1572365894
C65: North Dakota | D65: 0.1479052167 | E65: 0.1700909992
C66: Ohio | D66: 0.1473683572 | E66: 0.1694736108
C67: Oklahoma | D67: 0.1420135969 | E67: 0.1633156364
C68: Oregon | D68: 0.1645472775 | E68: 0.1892293691
C69: Pennsylvania | D69: 0.1761699109 | E69: 0.2025953976
C70: Rhode Island | D70: 0.1381699498 | E70: 0.1588954422
C71: South Carolina | D71: 0.1429183052 | E71: 0.164356051
C72: South Dakota | D72: 0.1217949367 | E72: 0.1400641772
C73: Tennessee | D73: 0.08955521135 | E73: 0.1029884931
C74: Texas | D74: 0.1200200836 | E74: 0.1380230962
C75: Utah | D75: 0.1438807326 | E75: 0.1654628425
C76: Vermont | D76: 0.1297209615 | E76: 0.1491791057
C77: Virginia | D77: 0.1226091888 | E77: 0.1410005672
C78: Washington | D78: 0.1591033622 | E78: 0.1829688665
C79: West Virginia | D79: 0.1429829207 | E79: 0.1644303589
C80: Wisconsin | D80: 0.13 | E80: 0.1495
C81: Wyoming | D81: 0.132 | E81: 0.1518
C82: Source: NCES
C83: Note: Wyoming had too low a number of special education students to have a rate, so used the national average

Sheet D8. Paras (hidden)
B1: SIZING TOOL | D1: 8
B2: Can the district free up funds from paraprofessional positions?
B3: Note: The Sizing Tools can identify opportunities that are worth further analysis, but are not intended to replace a "deep dive." More rigorous analysis is required to accurately estimate the potential financial impact of the most promising opportunities.
B4: Instructions: Please fill in all yellow-shaded areas. (They are currently filled in with example data.) Blue-shaded areas calculate automatically and green-shaded areas are hard-coded benchmarks
B6: Part 1. Input data
B7: Total student enrollment | D7: 50000
B8: Special education identification rate | D8: 0.132
B9: Total special education paraprofessionals (FTE) | D9: 360
B10: Average salary including benefits for paraprofessionals | D10: 30000
B12: Part 2. Compare staffing levels to other large districts
B13: Paraprofessionals (FTE) per 1,000 students | D13: =D9/D7*1000 -> 7.2
B14: Estimated paraprofessional staffing cost | D14: =ROUND((D9*D10), -5) -> 10800000
C15: Benchmark #1: Median of other districts | D15: Benchmark #2: Leaner district benchmark
B16: Paraprofessionals (FTE) per 1,000 students if the district's staffing levels matched either of the two benchmarks | C16: =6.5*($D$8/0.132) -> 6.5 | D16: =5.03*(D8/0.132) -> 5.03
B17: Estimated staffing cost if the district's staffing levels matched either of the two benchmarks, adjusted for enrollment | C17: =ROUND((($D$10*C16)/1000)*$D$7, -5) -> 9800000 | D17: =ROUND((($D$10*D16)/1000)*$D$7, -5) -> 7500000
B19: Part 3. Estimate funds freed up
B20: Estimated funds freed up by matching either of the two benchmarks | C20: =IF($D$14-C17<0, 0, $D$14-C17) -> 1000000 | D20: =IF($D$14-D17<0, 0, $D$14-D17) -> 3300000
B22: Source: District Management Council benchmarking analysis
B23: Note: (1) Staffing levels adjusted for special education identification rate; (2) This opportunity only includes special education paraprofessionals. It does not include paraprofessionals assigned to support whole general education classrooms (e.g. Kindergarten paraprofessionals); (3) For the purposes of this analysis, benchmark data are based on large districts with enrollments of 25,000 or more students.

Sheet D9. Intervention (hidden)
B1: SIZING TOOL | C1: 9
B2: Can the district free up funds by increasing the impact of intervention teaching positions? | E2: Key: Percent potential reduction based on screening tool points (FOR INTERNAL USE ONLY)
B3: Note: The Sizing Tools can identify opportunities that are worth further analysis, but are not intended to replace a "deep dive." More rigorous analysis is required to accurately estimate the potential financial impact of the most promising opportunities. | E3: 0-49 points | F3: 0
B4: Instructions: Please fill in all yellow-shaded areas. (They are currently filled in with example data.) Blue-shaded areas calculate automatically and green-shaded areas are hard-coded benchmarks | E4: 50-74 points | F4: 0.05
E5: 75-99 points | F5: 0.1
B6: Part 1. Input data | E6: 100-199 points | F6: 0.15
B7: Total points from Screening Tool | C7: ='B9. Intervention'!E43 -> 0 | E7: 200-299 points | F7: 0.2
B8: Total student enrollment | C8: 50000 | E8: 300 or more points | F8: 0.25
B9: Total intervention teachers (FTE) | C9: 100
B10: Average teacher salary including benefits | C10: 75000
B12: Part 2. Assess potential opportunity to increase the impact of intervention teaching positions
B13: Estimated intervention teaching staffing costs | C13: =C10*C9 -> 7500000
B14: Percent potential opportunity to increase the impact of intervention teaching positions | C14: =(IF(C7<50,F3,IF(C7<75,F4,IF(C7<100,F5,IF(C7<200,F6,IF(C7<300,F7,IF(C7>299,F8,""))))))) -> 0
B16: Part 3. Estimate funds freed up by increasing the impact of intervention teaching positions
B17: Estimated potential funds freed up by increasing the impact of intervention teaching positions | C17: =ROUND(C14*C13, -5) -> 0
B19: Notes: (1) Intervention teaching positions can look very different from district to district. This opportunity is based on a relatively broad definition of intervention teaching positions, including such positions as remedial math and reading teachers, Title I reading and math teachers, and others. In this case, intervention teaching positions are not meant to include special education teachers, related service practitioners, or paraprofessionals. Please see other opportunities related to special educators, speech and language therapists, and paraprofessionals. (2) Use the average salary for all certified teaching positions, not the average for intervention teachers only.

Sheet D10. Sped teachers (hidden)
B1: SIZING TOOL | D1: 10
B2: Can the district free up funds from special education teaching positions?
B3: Note: The Sizing Tools can identify opportunities that are worth further analysis, but are not intended to replace a "deep dive." More rigorous analysis is required to accurately estimate the potential financial impact of the most promising opportunities.
B4: Instructions: Please fill in all yellow-shaded areas. (They are currently filled in with example data.) Blue-shaded areas calculate automatically and green-shaded areas are hard-coded benchmarks
B6: Part 1. Input data
B7: Total student enrollment | D7: 50000
B8: Special education identification rate | D8: 0.132
B9: Total special education teachers (FTE) | D9: 400
B10: Average teacher salary including benefits | D10: 75000
B12: Part 2. Compare staffing levels to other large districts
B13: Special education teachers (FTE) per 1,000 students | D13: =D9/D7*1000 -> 8
B14: Estimated special education teaching staffing cost | D14: =ROUND(D9*D10, -5) -> 30000000
C15: Benchmark #1: Median of other districts | D15: Benchmark #2: Leaner district benchmark
B16: Special education teachers (FTE) per 1,000 students if the district's staffing levels matched either of the two benchmarks | C16: =7.4*($D$8/0.132) -> 7.4 | D16: =5.9*($D$8/0.132) -> 5.9
B17: Estimated staffing cost if the district's staffing levels matched either of the two benchmarks, adjusted for enrollment | C17: =ROUND((($D$10*C16)/1000)*$D$7, -5) -> 27800000 | D17: =ROUND((($D$10*D16)/1000)*$D$7, -5) -> 22100000
B19: Part 3. Estimate funds freed up
B20: Estimated funds freed up by matching either of the two benchmarks | C20: =IF($D$14-C17<0, 0, $D$14-C17) -> 2200000 | D20: =IF($D$14-D17<0,0, $D$14-D17) -> 7900000
B22: Source: District Management Council benchmarking analysis
B23: Notes: (1) This opportunity looks specifically at special education teachers who primarily support students with mild-to-moderate disabilities, including teachers in co-teaching, inclusion, resource room, or pullout settings. This opportunity does NOT include special education teachers who primarily support students with severe needs in substantially-seperate settings, related service providers (e.g., physical therapists, Speech and Langage Pathologosts, occupational therepists), or other staff in the special education department (e.g., IEP team leader, psychologists, paraprofessionals). (2) Use the average salary for all certified teaching positions, not the average for special education teachers only; (3) Staffing levels adjusted for special education identification rate; (4) For the purposes of this analysis, benchmark data are based on large districts with enrollments of 25,000 or more students.

Sheet D11. SLPs (hidden)
B1: SIZING TOOL | D1: 11
B2: Can the district free up speech and language therapist positions?
B3: Note: The Sizing Tools can identify opportunities that are worth further analysis, but are not intended to replace a "deep dive." More rigorous analysis is required to accurately estimate the potential financial impact of the most promising opportunities.
B4: Instructions: Please fill in all yellow-shaded areas. (They are currently filled in with example data.) Blue-shaded areas calculate automatically and green-shaded areas are hard-coded benchmarks
B6: Part 1. Input data
B7: Total student enrollment | D7: 50000
B8: Special education identification rate | D8: 0.132
B9: Total speech and language therapists (FTE) | D9: 90
B10: Average salary including benefits for speech and language therapists | D10: 75000
B12: Part 2. Compare staffing levels to other large districts
B13: Speech and language therapists (FTE) per 1,000 students | D13: =D9/D7*1000 -> 1.8
B14: Estimated speech and language therapy staffing cost | D14: =ROUND(D9*D10, -5) -> 6800000
C15: Benchmark #1: Median of other districts | D15: Benchmark #2: Leaner district benchmark
B16: Speech and language therapists (FTE) per 1,000 students if the district's staffing levels matched either of the two benchmarks | C16: =1.23*(D8/0.132) -> 1.23 | D16: =0.93*(D8/0.132) -> 0.93
B17: Estimated staffing cost if the district's staffing levels matched either of the two benchmarks, adjusted for enrollment | C17: =ROUND((($D$10*C16)/1000)*$D$7, -5) -> 4600000 | D17: =ROUND((($D$10*D16)/1000)*$D$7, -5) -> 3500000
B19: Part 3. Estimate funds freed up
B20: Estimate funds freed up by matching either of the two benchmarks | C20: =IF($D$14-C17<0, 0, $D$14-C17) -> 2200000 | D20: =IF($D$14-D17<0, 0, $D$14-D17) -> 3300000
B22: Source: District Management Council benchmarking analysis
B23: Notes: (1) Staffing levels adjusted for special education identification rate; (2) This opportunity looks at speech and language therapist positions only, and does not include speech and language assistants or other related services providers; (3) For the purposes of this analysis, benchmark data are based on large districts with enrollments of 25,000 or more students.

Sheet D12. Title I (hidden)
B1: SIZING TOOL | C1: 12
B2: Can the district increase the impact of Title I spending? | E2: Key: Percent potential reduction based on screening tool points (FOR INTERNAL USE ONLY)
B3: The Sizing Tools can identify opportunities that are worth further analysis, but are not intended to replace a "deep dive." More rigorous analysis is required to accurately estimate the potential financial impact of the most promising opportunities. | E3: 0-49 points | F3: 0
B4: Instructions: Please fill in all yellow-shaded areas. (They are currently filled in with example data.) Blue-shaded areas calculate automatically and green-shaded areas are hard-coded benchmarks | E4: 50-99 points | F4: 0.1
E5: 100-149 points | F5: 0.15
B6: Part 1. Input data | E6: 150-249 | F6: 0.2
B7: Total points from Screening Tool | C7: ='B12. Title I'!E49 -> 0 | E7: 250 or more points | F7: 0.3
B8: Last year's total Title I allocation | C8: 65000000
B10: Part 2. Assess potential opportunity to increase impact of current spending
B11: Percent potential opportunity to increase the impact of Title I spending, based on Screening Tool score | C11: =(IF(C7<50,F3,IF(C7<100,F4,IF(C7<150,F5,IF(C7<250,F6,IF(C7>249,F7,"")))))) -> 0
B13: Part 3. Estimate current spending that can be used for greater impact
B14: Estimated current Title I spending that can have greater impact | C14: =C11*C8 -> 0
B16: Note: Include all Title I funds whether spent or managed at the district or school level.

Sheet D13. OOD (hidden)
B1: SIZING TOOL | C1: 13
B2: Can the district free up funds by reducing reliance on out-of-district special education placements?
B3: The Sizing Tools can identify opportunities that are worth further analysis, but are not intended to replace a "deep dive." More rigorous analysis is required to accurately estimate the potential financial impact of the most promising opportunities.
B4: Instructions: Please fill in all yellow-shaded areas. (They are currently filled in with example data.) Blue-shaded areas calculate automatically and green-shaded areas are hard-coded benchmarks
B6: Part 1. Input data
B7: Total student enrollment | C7: 50000
B8: Total expenditures (all sources) | C8: 650000000
B9: Number of students with Individualized Education Plans (IEPs) who are served in out-of-district placements | C9: 330
B11: Part 2. Compare district out-of-district placement rate with national out-of-district placement rate
B12: Percent of all students with disabilities who are served in out-of-district special education placements | C12: 0.037
B13: Percent of all students who are served in out-of-district special education placements | C13: =C9/C7 -> 0.0066
B14: Percent of all students who are served in out-of-district special education placements nationwide | C14: =(0.132*C12) -> 0.004884
B15: Estimated number of students served in out-of-district special education placements if the district out-of-district rate matched the nationwide rate | C15: =ROUND(C7*C14, -1) -> 240
B16: Estimated reduction in students served in out-of-district placements if the district rate and the nationwide rate (number of students) | C16: =IF(C9-C15<0, 0, C9-C15) -> 90
B18: Part 3. Estimate funds freed up
B19: Estimated funds freed up by reducing reliance on out-of-district special education placements | C19: =ROUND(((C8/C7)*2)*C16, -5) -> 2300000
B21: Source: The Condition of Education, National Center for Education Statistics, 2011 data
B22: Notes: (1) Students with IEPs served out of district includes students in public and non-public separate schools for students with disabilities, separate residential facilities, and home-bound/ hospital placements, but does not include students who are parentally-placed in regular private schools; (2) Include expenditures from all funding sources, including grant sources (e.g. IDEA); (3) Estimates are adjusted for per-pupil spending; (4) Given the difficultly of collecting data on the full costs of serving out-of-district students, the analysis assumes that the cost savings is roughly twice the average per-pupil expenditure. A deeper dive should take into account the actual costs of out-of-district placements and in-district services. Actual cost savings from reducing reliance on out-of-district placements will include tuition and transportation costs; (5) Sometimes first-year investments are needed to build district capacity to serve more students in district and take advantage of savings in later years.

Sheet D14. Alt schools (hidden)
B1: SIZING TOOL | C1: 14
B2: Can the district free up funds by reducing its reliance on alternative schools for students with behavioral challenges? | E2: Key: Percent potential reduction based on screening tool points (FOR INTERNAL USE ONLY)
B3: Note: The Sizing Tools can identify opportunities that are worth further analysis, but are not intended to replace a "deep dive." More rigorous analysis is required to accurately estimate the potential financial impact of the most promising opportunities. | E3: 0-49 points | F3: 0
B4: Instructions: Please fill in all yellow-shaded areas. (They are currently filled in with example data.) Blue-shaded areas calculate automatically and green-shaded areas are hard-coded benchmarks | E4: 50-74 points | F4: 0.05
E5: 75-99 points | F5: 0.1
B6: Part 1. Input data | E6: 100 or more points | F6: 0.2
B7: Total points from Screening Tool | C7: ='B14. Alt schools'!E30 -> 0
B8: Total teachers, social workers, and non-administrative professional staff in alternative schools (FTE) | C8: 60
B9: Average teacher salary including benefits | C9: 75000
B11: Part 2. Assess potential opportunity to free up funds
B12: Estimated staffing cost associated with alternative schools | C12: =C8*C9 -> 4500000
B13: Percent potential opportunity to free up funds by reducing reliance on alternative schools for students with behavioral challenges, based on Screening Tool score | C13: =(IF(C7<50,F3,IF(C7<75,F4,IF(C7<100,F5,IF(C7>99,F6,""))))) -> 0
B15: Part 3. Estimate funds freed up
B16: Estimated potential funds freed up by reducing reliance on alternative schools for students with behavioral challenges | C16: =ROUND(C12*C13, -3) -> 0
B18: Note: (1) Use the average salary for all certified teaching positions in the district, not the average for only the teachers, social workers, and non-administrative professional staff in alternative schools; (2) For the purposes of this tool, only include secondary alternative schools.

Sheet D15. FARM (hidden)
A1: NOTE: THIS TAB IS BEING RE_WORKED TO APPLY TO A BROADER RANGE OF DISTRICTS, PLEASE USE ACCORDINGLY.
B2: SIZING TOOL | C2: 15
B3: Can the district increase state and federal funding by maximizing free and reduced-priced meals enrollment? | E3: Key: Percent potential reduction based on screening tool points (FOR INTERNAL USE ONLY)
B4: Note: The Sizing Tools can identify opportunities that are worth further analysis, but are not intended to replace a "deep dive." More rigorous analysis is required to accurately estimate the potential financial impact of the most promising opportunities. | E4: 0-49 points | F4: 0
B5: Instructions: Please fill in all yellow-shaded areas. (They are currently filled in with example data.) Blue-shaded areas calculate automatically and white-shaded areas are hard-coded benchmarks | E5: 50-74 points | F5: 0.02
E6: 75-99 points | F6: 0.05
B7: Part 1. Input data | E7: 100-199 points | F7: 0.08
B8: Total points from Screening Tool | C8: ='B15. FARM'!E38 -> 0 | E8: 200 or more points | F8: 0.1
B9: Last year's total Title I allocation | C9: 20000000
B11: Part 2. Assess potential increase in Title I allocation
B12: Percent potential increase in Title I allocation | C12: =(IF(C8<50,F4,IF(C8<75,F5,IF(C8<100,F6,IF(C8<200,F7,IF(C8>199,F8,"")))))) -> 0
B14: Part 3. Estimate increase in Title I allocation
B15: Estimated potential increase in Title I allocation | C15: =C12*C9 -> 0
B17: Note: The impact of this opportunity will vary state-by-state, depending on state allocation rules for Title I funds.

Sheet D16. Medicaid (hidden)
B1: SIZING TOOL | C1: 16
B2: Can the district increase federal Medicaid reimbursement for health-related student services? | E2: Key: Percent potential reduction based on screening tool points (FOR INTERNAL USE ONLY)
B3: Note: The Sizing Tools can identify opportunities that are worth further analysis, but are not intended to replace a "deep dive." More rigorous analysis is required to accurately estimate the potential financial impact of the most promising opportunities. | E3: 0-49 points | F3: 0
B4: Instructions: Please fill in all yellow-shaded areas. (They are currently filled in with example data.) Blue-shaded areas calculate automatically and white-shaded areas are hard-coded benchmarks | E4: 50-74 points | F4: 0.2
E5: 75-99 points | F5: 0.3
B6: Part 1. Input data | E6: 100-149 points | F6: 0.4
B7: Total points from Screening Tool | C7: ='B16. MEDICAID'!E29 -> 0 | E7: 150 or more points | F7: 0.5
B8: Last year's total Medicaid reimbursement | C8: 6500000
B10: Part 2. Assess potential increase in Medicaid reimbursement
B11: Percent potential increase in Medicaid reimbursement | C11: =(IF(C7<50,F3,IF(C7<75,F4,IF(C7<100,F5,IF(C7<150,F6,IF(C7>149,F7,"")))))) -> 0
B13: Part 3. Estimate increase in Medicaid reimbursement
B14: Estimated maximum increase in Medicaid reimbursement | C14: =C11*C8 -> 0

Sheet D17. PD (hidden)
B1: SIZING TOOL | C1: 17
B2: Can the district free up funds from professional development expenditures? | E2: Key: Percent potential reduction based on screening tool points (FOR INTERNAL USE ONLY)
B3: The Sizing Tools can identify opportunities that are worth further analysis, but are not intended to replace a "deep dive." More rigorous analysis is required to accurately estimate the potential financial impact of the most promising opportunities. | E3: 0-49 points | F3: 0
B4: Instructions: Please fill in all yellow-shaded areas. (They are currently filled in with example data.) Blue-shaded areas calculate automatically and green-shaded areas are hard-coded benchmarks | E4: 50-74 points | F4: 0.1
E5: 75-99 points | F5: 0.2
B6: Part 1. Input data | E6: 100-199 points | F6: 0.3
B7: Total points from Screening Tool | C7: ='B17. PD '!E30 -> 0 | E7: 200-299 points | F7: 0.4
B8: Last year's expenditures on all stipends provided to teachers for collaboration and/or other professional development activities | C8: 10000000 | E8: 300 or more points | F8: 0.5
B9: Last year's expenditures on outside professional development providers | C9: 5000000
B10: Total contracted teacher work time during which students are not present, including early release days and/or full days devoted to professional development, planning, and/or orientation per teacher (in days) | C10: 4
B11: Total teachers in the district (FTE) | C11: 2000
B12: Total school days per year | C12: 180
B13: Average teacher salary including benefits | C13: 75000
B15: Part 2. Assess potential opportunity to free up funds
B16: Percent potential opportunity to free up funds from professional development, based on Screening Tool score | C16: =(IF(C7<50,F3,IF(C7<75,F4,IF(C7<100,F5,IF(C7<200,F6,IF(C7<300,F7,IF(C7>299,F8,""))))))) -> 0
B18: Part 3. Estimate funds freed up
B19: Estimated funds freed up from stipends provided to teachers for collaboration and/or other professional development activities | C19: =ROUND(C8*$C$16, -5) -> 0
B20: Estimated funds freed up from outside professional development providers | C20: =ROUND(C9*$C$16, -5) -> 0
B21: Estimated funds freed up from full days devoted to professional development, planning, and/or orientation for teachers | C21: =ROUND(((C10-2)*(C13/C12)*C11)*C16, -5) -> 0
B22: Total estimated funds freed up from professional development | C22: =SUM(C19:C21) -> 0
B24: Note: Analysis does not include some forms of professional development, including time for collaboration and/or other professional development activities embedded during the regular school day and year, costs associated with teacher observation and feedback, increases in pay tied to advanced degrees, administrative costs associated with managing professional development, supplies and materials, etc. A deeper dive should include all associated costs.

Sheet D18. No-cost PD (hidden)
B1: SIZING TOOL | C1: 18
B2: Can the district provide more professional development opportunities for core teachers at little or no additional cost?
B3: The Sizing Tools can identify opportunities that are worth further analysis, but are not intended to replace a "deep dive." More rigorous analysis is required to accurately estimate the potential financial impact of the most promising opportunities.
B4: Instructions: Please fill in all yellow-shaded areas. (They are currently filled in with example data.) Blue-shaded areas calculate automatically and green-shaded areas are hard-coded benchmarks
B6: Part 1. Input data
B7: Points from Screening Tool Question # 6 | C7: ='B18. No-cost PD'!E33 -> 0
B8: Average number of hours per month core teachers spend in faculty meetings | C8: 4
B9: Average number of hours per month core teachers spend collaborating with colleagues or participating in other professional development activities during the regular school day (as opposed to before or after school) | C9: 5
B10: Average number of hours per month core teachers spend receiving specific and actionable feedback from coaches that aligns with districtwide goals | C10: 0
B11: Average number of hours per month core teachers spend receiving specific and actionable feedback from principals that aligns with districtwide goals | C11: 0
B12: Total teacher work days per year | C12: 184
B13: Total core teachers in the district (FTE) | C13: 1500
B15: Part 2. Assess potential opportunity to increase monthly professional development for core teachers at little or no additional cost
B16: Potential hours of faculty meetings that can be devoted to professional development per teacher per month | C16: =IF(C7>0, C8, 0) -> 0
B17: Additional potential hours for teacher collaboration or other forms of professional development that can be embedded during the regular school day per teacher per month | C17: =IF(C9>15, 0, 15-C9) -> 10
B18: Additional potential hours for specific and actionable feedback aligned with districtwide goals that can be provided by coaches per teacher per month | C18: =IF(C10>1, 0, 1) -> 1
B19: Additional potential hours for specific and actionable feedback aligned with districtwide goals that can be provided by principals per teacher per month | C19: =IF(C11>1, 0, 1) -> 1
B21: Part 3. Estimate additional hours of professional development at no additional cost
B22: Estimated potential additional annual hours for professional development per teacher | C22: =$C$23*10 -> 120
B23: Estimated total potential hours available per teacher for professional development at little or no additional cost per teacher per month | C23: =SUM(C16:C19) -> 12
B24: Estimated potential additional annual hours for professional development | C24: =C22*$C$13 -> 180000
B26: Notes: (1) Core teachers refers to elementary classroom teachers and secondary teachers who teach core classes, including math, reading/ English Language Arts, science, social studies, and foreign languages; (2) Providing additional opportunities for professional development will require changes to staffing, scheduling, and policies/ procedures; (3) Analysis assumes that all faculty meetings can be devoted to professional development, at least 15 hours of professional development can be embedded during the regular school day per month, and, on average, teachers can receive at least one hour of feedback from coaches and one hour of feedback from principals per month.

Sheet D19. Coaching impact (hidden)
B1: SIZING TOOL | C1: 19
B2: Can the district increase the impact of the coaching model at little to no additional cost? | E2: Key: Percent potential reduction based on screening tool points (FOR INTERNAL USE ONLY)
B3: Note: The Sizing Tools can identify opportunities that are worth further analysis, but are not intended to replace a "deep dive." More rigorous analysis is required to accurately estimate the potential financial impact of the most promising opportunities. | E3: 0-49 points | F3: 0
B4: Instructions: Please fill in all yellow-shaded areas. (They are currently filled in with example data.) Blue-shaded areas calculate automatically and green-shaded areas are hard-coded benchmarks | E4: 50-74 points | F4: 0.2
E5: 75-99 points | F5: 0.4
B6: Part 1. Input data | E6: 100-199 points | F6: 0.6
B7: Total points from Screening Tool | C7: ='B19. Coaching impact'!E49 -> 0 | E7: 200-299 points | F7: 0.8
B8: Total coaching positions (FTE) | C8: 40 | E8: 300 or more points | F8: 1
B9: Average coach's salary including benefits | C9: 75000
B11: Part 2. Assess potential opportunity to increase the impact of current positions
B12: Estimated spending on instructional coaching positions | C12: =C8*C9 -> 3000000
B13: Percent potential opportunity to increase the impact of spending on current instructional coaching, based on Screening Tool score | C13: =(IF(C7<50,F3,IF(C7<75,F4,IF(C7<100,F5,IF(C7<200,F6,IF(C7<300,F7,IF(C7>299,F8,""))))))) -> 0
B15: Part 3. Estimate current spending that can have greater impact
B16: Estimated current spending on instructional coaching positions that can have greater impact | C16: =ROUND(C12*C13, -3) -> 0
B18: Note: This opportunity includes all positions devoted to observing teachers, providing feedback, and coaching support to teachers, but does not include administrators (e.g. principals, assistant principals)

Sheet D20. Free funds coaching (hidden)
B1: SIZING TOOL | C1: 20
B2: Can the district free up funds from instructional coaching positions? | E2: Key: Percent potential reduction based on screening tool points (FOR INTERNAL USE ONLY)
B3: Note: The Sizing Tools can identify opportunities that are worth further analysis, but are not intended to replace a "deep dive." More rigorous analysis is required to accurately estimate the potential financial impact of the most promising opportunities. | E3: 0-49 points | F3: 0
B4: Instructions: Please fill in all yellow-shaded areas. (They are currently filled in with example data.) Blue-shaded areas calculate automatically and green-shaded areas are hard-coded benchmarks | E4: 50-74 points | F4: 0.1
E5: 75-99 points | F5: 0.2
B6: Part 1. Input data | E6: 100-149 points | F6: 0.3
B7: Total points from Screening Tool | C7: ='B20. Free funds coaching'!E22 -> 0 | E7: 150-199 points | F7: 0.4
B8: Total coaching positions (FTE) | C8: 40 | E8: 200 or more points | F8: 0.5
B9: Average coach's salary including benefits | C9: 75000
B11: Part 2. Assess potential opportunity to free up funds
B12: Estimated instructional coaching staffing cost | C12: =C8*C9 -> 3000000
B13: Percent potential funds freed up from instructional coaching positions, based on Screening Tool score | C13: =(IF(C7<50,F3,IF(C7<75,F4,IF(C7<100,F5,IF(C7<150,F6,IF(C7<200,F7,IF(C7>199,F8,""))))))) -> 0
B15: Part 3. Estimate funds freed up
B16: Estimated funds freed up from instructional coaching positions | C16: =ROUND(C13*C12, -3) -> 0

Sheet D21. Central office (hidden)
B1: SIZING TOOL | D1: 21
B2: Can the district free up funds from central office spending?
B3: Note: The Sizing Tools can identify opportunities that are worth further analysis, but are not intended to replace a "deep dive." More rigorous analysis is required to accurately estimate the potential financial impact of the most promising opportunities.
B4: Instructions: Please fill in all yellow-shaded areas. (They are currently filled in with example data.) Blue-shaded areas calculate automatically and green-shaded areas are hard-coded benchmarks
B6: Part 1. Input data
B7: Last year's total operating budget | D7: 261000000
B8: Last year's central office business services expenditures | D8: 8800000 | DY8: 143
B9: Includes costs such as finance and budget services, information services, human resources, insurance, and legal | FJ9: 144
B10: Last year's central office instructional support and professional development expenditures | D10: 4200000 | DA10: 151
B11: Includes costs such as curriculum development, professional development, and program management and support for special populations, including students with disabilities and English language learners
B12: Last year's central office leadership expenditures | D12: 4400000
B13: Includes research and accountability programs and other governance and school supervision activities, communications, as well as student assignment services
B14: Last year's central office operations and maintenance expenditures | D14: 3400000
B15: Includes costs such as facilities and maintenance, utilities, security and safety, transportation, and food services
B16: Last year's central office pupil services and enrichment expenditures | D16: 700000
B17: Includes other student services such as district-wide enrichment activities, parent outreach and engagement, counseling and other social emotional services, as well as physical health services and therapies
B19: Part 2. Compare central office spending to other districts
B20: Total central office spending | D20: =ROUND(SUM(D16,D14,D12,D10,D8), -5) -> 21500000
B21: Spending as percent of total operating budget | D21: =D20/D7 -> 0.08237547893
C22: Benchmark #1: Typical district benchmark | D22: Benchmark #2: Leaner district benchmark
B23: Spending as percent of total operating budget in other districts | C23: 0.082 | D23: 0.068
B24: Estimated central office spending if the district's spending as a percent of total operating expenditures matched either of the two benchmarks | C24: =ROUND(C23*$D$7, -5) -> 21400000 | D24: =ROUND(D23*$D$7, -5) -> 17700000
B26: Part 3. Estimate funds freed up
B27: Estimated funds freed up by matching either of the two benchmarks | C27: =IF($D$20-C24<0, 0, $D$20-C24) -> 100000 | D27: =IF($D$20-D24<0, 0, $D$20-D24) -> 3800000
B29: Source: Adapted from BCG analysis of ERS comparable districts data
B30: Note: Do not include personnel or expenditures that are budgeted centrally but take place in schools (e.g., special education personnel, related services personnel)

Sheet D22. Building admins (hidden)
B1: SIZING TOOL | C1: 22
B2: Can the district free up funds from school-based administrator positions and/or increase the impact of existing positions? | E2: Key: Percent potential reduction based on screening tool points (FOR INTERNAL USE ONLY)
B3: Note: The Sizing Tools can identify opportunities that are worth further analysis, but are not intended to replace a "deep dive." More rigorous analysis is required to accurately estimate the potential financial impact of the most promising opportunities. | E3: 0-49 points | F3: 0
B4: Instructions: Please fill in all yellow-shaded areas. (They are currently filled in with example data.) Blue-shaded areas calculate automatically and green-shaded areas are hard-coded benchmarks | E4: 50-74 points | F4: 0.1
E5: 75-99 points | F5: 0.2
B6: Part 1. Input data | E6: 100 or more points | F6: 0.3
B7: Increase the Impact of Existing Positions Subtotal score from Screening Tool | D7: ='B22. Building admins'!E27 -> 0
B8: Total student enrollment | D8: 50000
B9: Total assistant principals (APs), deans, and/or equivalent positions (FTE) | D9: 150
B10: Average assistant principal salary including benefits | D10: 100000
B12: Part 2. Compare staffing levels to other districts and estimate funds freed up
B13: Students per FTE of APs, deans, and equivalent positions | D13: =IFERROR(ROUND(D8/D9, -1), "") -> 330
B14: Estimated APs, deans, and/or equivalent positions staffing costs | D14: =ROUND(D9*D10, -3) -> 15000000
C15: Benchmark #1: Median of other districts | D15: Benchmark #2: Leaner district benchmark
B16: Students per FTE of APs, deans, and equivalent positions if the district's staffing levels matched either of the two benchmarks | C16: 450 | D16: 500
B17: Total APs, deans, and equivalent positions (FTE) if district's staffing levels matched the benchmark | C17: =$D$8/C16 -> 111.1111111 | D17: =$D$8/D16 -> 100
B18: Estimated AP, dean, and equicalent positions (FTE) that can be reduced if district's staffing levels matched the benchmark | C18: =ROUND($D$9-C17, -1) -> 40 | D18: =ROUND($D$9-D17, -1) -> 50
B19: Estimated staffing cost if the district's staffing levels matched each of two benchmarks, adjusted for enrollment | C19: =ROUND(C17*$D$10, -5) -> 11100000 | D19: =ROUND(D17*$D$10, -5) -> 10000000
B20: Estimated funds freed up by matching each of two benchmarks | C20: =IF($D$14-C19<0, 0, $D$14-C19) -> 3900000 | D20: =IF($D$14-D19<0, 0, $D$14-D19) -> 5000000
B22: Part 3. Assess further potential opportunity to increase the impact of spending on remaining positions
B23: Percent potential opportunity to increase the impact of spending on remaining APs, deans, and/or equivalent positions, based on Screening Tool score | C23: =(IF($D$7<50,$F$3,IF($D$7<75,$F$4,IF($D$7<100,$F$5,IF($D$7>99,$F$6,""))))) -> 0 | D23: =(IF($D$7<50,$F$3,IF($D$7<75,$F$4,IF($D$7<100,$F$5,IF($D$7>99,$F$6,""))))) -> 0
B24: Estimated spending on remaining APs, deans, and equivalent positions that can have greater impact | C24: =ROUND((D10*C17)*C23, -5) -> 0 | D24: =ROUND((D10*D17)*D23, -5) -> 0
B27: Source: ERS and Parthenon analysis in Knox County Schools
B28: Note: Building administrator positions can look different from district to district. This opportunity is based on a relatively broad definition of building administrator positions. Building administrator positions in this instance are meant to include positions such assistant principals, deans, department heads, or other equivalent positions, but does not include principals.

Sheet D23. Clerical (hidden)
B1: SIZING TOOL | D1: 23
B2: Can the district free up funds from clerical support positions?
B3: Note: The Sizing Tools can identify opportunities that are worth further analysis, but are not intended to replace a "deep dive." More rigorous analysis is required to accurately estimate the potential financial impact of the most promising opportunities.
B4: Instructions: Please fill in all yellow-shaded areas. (They are currently filled in with example data.) Blue-shaded areas calculate automatically and green-shaded areas are hard-coded benchmarks
B6: Part 1. Input data
B7: Total student enrollment | D7: 50000
B8: Total school-based clerical support positions (FTE) | D8: 150
B9: Total central office clerical support positions (FTE) | D9: 150
B10: Average clerical support position salary including benefits | D10: 40000
B11: Total clerical support positions (FTE) | D11: =SUM(D8:D9) -> 300
B13: Part 2. Compare staffing levels to other districts
B14: Students per FTE of clerical support positions | D14: =IFERROR(ROUND(D7/D11, -1), "") -> 170
B15: Estimated staffing cost | D15: =ROUND(D11*D10, -5) -> 12000000
C16: Benchmark #1: Median of other districts | D16: Benchmark #2: Leaner district benchmark
B17: Students per FTE of clerical support positions if the district's staffing levels matched either of the two benchmarks | C17: 220 | D17: 260
B18: Total clerical support positions (FTE) if the district's staffing levels matched the benchmark | C18: =IFERROR(ROUND($D$7/C17, -1), "") -> 230 | D18: =IFERROR(ROUND($D$7/D17, -1), "") -> 190
B19: Estimated clerical support positions (FTE) that can be reduced if the district's staffing levels matched the benchmark | C19: =IFERROR($D$11-C18, "") -> 70 | D19: =IFERROR($D$11-D18, "") -> 110
B20: Estimated staffing cost if the district's staffing levels matched either of the two benchmarks, adjusted for enrollment | C20: =IF(ROUND(C18*$D$10, -5)<0, 0, ROUND(C18*$D$10, -5)) -> 9200000 | D20: =IF(ROUND(D18*$D$10, -5)<0, 0, ROUND(D18*$D$10, -5)) -> 7600000
B22: Part 3. Estimate funds freed up
B23: Estimated funds freed up by matching either of the two benchmarks | C23: =IF(ROUND($D$15-C20,-2)<0, 0, ROUND($D$15-C20,-2)) -> 2800000 | D23: =IF(ROUND($D$15-D20,-2)<0, 0, ROUND($D$15-D20,-2)) -> 4400000
B25: Source: ERS benchmarking for Lake County Schools
B26: Note: Clerical support positions can look different from district to district. This opportunity is based on a relatively broad definition of clerical support positions. Clerical support positions in this instance are meant to include positions such as (but not necessarily limited to) school secretaries, administrative assistants, data entry staff, bookkeepers/bookkeeper assistants, payroll clerks, human resource support staff.

Sheet D24. Library (hidden)
B1: SIZING TOOL | C1: 24
B2: Can the district free up funds from library/ media specialist positions and/or increase the impact of existing positions? | E2: Key: Percent potential reduction based on screening tool points ( FOR INTERNAL USE ONLY)
B3: Note: The Sizing Tools can identify opportunities that are worth further analysis, but are not intended to replace a "deep dive." More rigorous analysis is required to accurately estimate the potential financial impact of the most promising opportunities. | E3: 0-49 points | F3: 0
B4: Instructions: Please fill in all yellow-shaded areas. (They are currently filled in with example data.) Blue-shaded areas calculate automatically and green-shaded areas are hard-coded benchmarks | E4: 50 or more points | F4: 0.3
B6: Part 1. Input data
B7: Increase the Impact of Existing Positions Subtotal score from Screening Tool | C7: ='B24. Library'!E41 -> 0
B8: Total student enrollment | C8: 50000
B9: Total library/ media specialists (FTE) | C9: 100
B10: Average library/ media specialist salary including benefits | C10: 100000
B12: Part 2. Compare staffing levels to other large districts and estimate savings
B13: Students per FTE of library/ media specialists | C13: =C8/C9 -> 500
B14: Estimated library/ media specialist staffing costs | C14: =ROUND(C10*C9, -3) -> 10000000
B15: Students per library/ media specialist if the district's staffing levels matched the median of other districts | C15: 750
B16: # of librarians/ library media specialists needed to match other districts | C16: =ROUND($C$8/C15, -1) -> 70
B17: Estimated number of librarian/ library media specialist positions (FTE) that can be reduced | C17: =$C$9-C16 -> 30
B18: Estimated staffing costs if the district's staffing levels matched the median of other districts, adjusted for enrollment | C18: =ROUND(C16*$C$10, -3) -> 7000000
B19: Estimated funds freed up by matching median of other districts | C19: =IF($C$14-C18<0, 0, $C$14-C18) -> 3000000
B21: Part 3. Assess further potential opportunity to increase the impact of spending on remaining positions
B22: Percent potential opportunity to increase the impact of spending on remaining library/media specialists, based on Screening Tool score | C22: =(IF($C$7<50,$F$3,IF($C$7<75,$F$4))) -> 0
B23: Estimated spending on remaining library/ media specialists that can have a greater impact | C23: =ROUND(($C$10*$C$16)*C22, -3) -> 0
B25: Source: ERS and Parthenon analysis in Knox County Schools
B26: Note: Library/ media specialist positions can look different from district to district. This screening is based on a relatively broad definition of library/ media specialist positions. Library/ media specialist positions in this instance are meant to include full-time professional staff, including positions such as librarians, library specialists, media specialists, etc.

Sheet D25. Guidance (hidden)
B1: SIZING TOOL | C1: 25
B2: Can the district free up funds from guidance counselor positions?
B3: Note: The Sizing Tools can identify opportunities that are worth further analysis, but are not intended to replace a "deep dive." More rigorous analysis is required to accurately estimate the potential financial impact of the most promising opportunities.
B4: Instructions: Please fill in all yellow-shaded areas. (They are currently filled in with example data.) Blue-shaded areas calculate automatically and green-shaded areas are hard-coded benchmarks
B6: Part 1. Input data
B7: Total student enrollment | C7: 50000
B8: Total guidance counselors (FTE) | C8: 125
B9: Average guidance counselor salary including benefits | C9: 100000
B11: Part 2. Compare staffing levels to other districts
B12: Students per FTE of guidance counselors | C12: =IFERROR(ROUND(C7/C8, -1), "") -> 400
B13: Estimated guidance counselor staffing costs | C13: =ROUND(C9*C8, -3) -> 12500000
B14: Students per FTE of guidance counselor if the district's staffing levels matched the median of other districts | C14: 525
B15: Estimated staffing cost if the district's staffing levels matched the median of other districts, adjusted for enrollment | C15: =ROUND(C16*$C$9, -5) -> 10000000
B16: # of guidance counselor needed to match other districts | C16: =IFERROR(ROUND($C$7/C14, -1), "") -> 100
B17: Estimated number of guidance counselor positions (FTE) that can be reduced | C17: =IFERROR($C$8-C16, "") -> 25
B19: Part 3. Estimate funds freed up
B20: Estimated funds freed up by matching median of other districts | C20: =IF($C$13-C15<0, 0, $C$13-C15) -> 2500000
B22: Source: ERS and Parthenon analysis in Knox County Schools
B23: Note: Guidance counselor positions can look different from district to district. This screening is based on a relatively narrow definition of guidance counselor positions. Guidance counselor positions in this instance are meant to include professional staff who primarily provide academic counseling support to students, including college counseling, course selection, etc. For the purposes of this tool, they are not meant to include professional staff who primarily provide mental health or other non-academic counseling support to students.

Sheet D26. Sizing absenteeism (hidden)
B1: SIZING TOOL | D1: 26
B2: Can the district free up funds associated with teacher absences?
B3: The Sizing Tools can identify opportunities that are worth further analysis, but are not intended to replace a "deep dive." More rigorous analysis is required to accurately estimate the potential financial impact of the most promising opportunities.
B4: Instructions: Please fill in all yellow-shaded areas. (They are currently filled in with example data.) Blue-shaded areas calculate automatically and green-shaded areas are hard-coded benchmarks
B6: Part 1. Input data
B7: Total school days per year | D7: 180
B8: Total teachers (FTE) | D8: 4000
B9: Average teacher salary including benefits | D9: 75000
B10: Average substitute teacher daily rate | D10: 300
B11: Average daily teacher attendance rate | D11: 0.94
B12: Average daily cost of teacher time per teacher | D12: =D9/D7 -> 416.6666667
B14: Part 2. Compare teacher attendance rate to other districts
B15: Approximate number of teachers absent per day | D15: =ROUND(D8* (1-D11), -1) -> 240
B16: Estimated costs of hiring substitutes | D16: =ROUND((($D$15*$D$10))*$D$7, -5) -> 13000000
C17: Benchmark #1: National benchmark | D17: Benchmark #2: High-performing district benchmark
B18: Average daily teacher attendance rate | C18: 0.947 | D18: 0.97
B19: Estimated number of teachers absent per day if the district's teacher attendance rate matched either of the two benchmarks | C19: =ROUND($D$8*(1-C18), -1) -> 210 | D19: =ROUND($D$8*(1-$D$18), -1) -> 120
B20: Estimated costs of hiring substitutes if the district's teacher attendance rate matched either of the two benchmarks | C20: =ROUND((($C$19*$D$10))*$D$7, -5) -> 11300000 | D20: =ROUND((($D$19*$D$10))*$D$7, -5) -> 6500000
B22: Part 3. Estimate funds freed up
B23: Estimated funds freed up by matching either of the two benchmarks | C23: =IF($D$16-$C$20<0, 0, $D$16-$C$20) -> 1700000 | D23: =IF($D$16-$D$20<0, 0, $D$16-$D$20) -> 6500000
B25: Source: Raegen Miller, "Teacher Absence as a Leading Indicator of Student Achievement: New National Data Offer Opportunity to Examine Cost of Teacher Absence Relative to Learning Loss," November 2012.
B26: Notes: (1) Estimated costs of substitute teachers include salary costs only. A deeper dive should include administrative costs associated with managing substitute and other related costs; (2) This opportunity includes absences for personal days and sick days, but does not include absences associated with long-term leaves.

Sheet D27. ELT (hidden)
B1: SIZING TOOL | C1: 27
B2: Can the district free up funds from extended school day and/or year programs?
B3: The Sizing Tools can identify opportunities that are worth further analysis, but are not intended to replace a "deep dive." More rigorous analysis is required to accurately estimate the potential financial impact of the most promising opportunities.
B4: Instructions: Please fill in all yellow-shaded areas. (They are currently filled in with example data.) Blue-shaded areas calculate automatically and white-shaded areas are hard-coded benchmarks
G5: Source
B6: Part 1. Input data
B7: Total staff members who work a longer school day and/or year (FTE) | C7: 500 | F7: 9000 | G7: Median of ERS districts, KCS
B8: Average salary including benefits for teachers (not including pay for extended school day and/or year) | C8: 75000 | F8: 310 | G8: CGCS
B9: Average additional pay for extended school day and/or year per staff member | C9: 12000
B11: Part 2. Compare increase in staffing costs to other districts with extended school days and/or years
B12: Percent increase in staffing costs for extended school days and/or years | C12: =C9/C8 -> 0.16
B13: Percent increase in staffing costs for extended school days and/or years in other districts | C13: 0.1
B15: Part 3. Estimate funds freed up
B16: Estimated funds freed up by matching extended school day and/or year staffing costs in other districts | C16: =IF(C12>C13, ROUND((C9-(C8*C13))*C7, -4), 0) -> 2250000
B18: Source: DMC analysis of extended school day and year programs
B19: Notes: (1) Use the average salary including benefits for all certified teaching positions, not the average for extended school day and/or year staff only; (2) Analysis does not take into account full costs of providing extended school days and/or years, including administrative costs, contracts with partners, transportation, etc; (3) Extended school day and/or year programs can look different from district to district. This opportunity includes programs that increase the amount of student learning time during the regular school day and/or year for some or all students in a given school and/or district, but does not include traditional forms of summer school.

Sheet D28. Blended learning (hidden)
B1: SIZING TOOL | C1: 28
B2: Can the district free up funds from blended learning and/or online classes and/or increase the impact at little or no additional cost? | E2: Key: Percent potential reduction based on screening tool points (FOR INTERNAL USE ONLY)
B3: Note: The Sizing Tools can identify opportunities that are worth further analysis, but are not intended to replace a "deep dive." More rigorous analysis is required to accurately estimate the potential financial impact of the most promising opportunities. | E3: 0-49 points | F3: 0
B4: Instructions: Please fill in all yellow-shaded areas. (They are currently filled in with example data.) Blue-shaded areas calculate automatically and white-shaded areas are hard-coded benchmarks | E4: 50-74 points | F4: 0.05
E5: 75-99 points | F5: 0.1
B6: Part 1. Input data | E6: 100-149 points | F6: 0.2
B7: Total points from Free up Funds from Blended Learning and/or Online Classes Subtotal from Screening Tool | C7: ='B28. Blended learning'!E25 -> 0 | E7: 150 or more points | F7: 0.3
B8: Total points from Increase the Impact of Blended Learning and/or Online Classes Subtotal from Screening Tool | C8: ='B28. Blended learning'!E42 -> 0
B9: Total teachers devoted to blended learning and online classes (FTE) | C9: 20 | E9: Key for Percent potential to further increase the impact
B10: Average teacher salary including benefits | C10: 75000 | E10: 0-49 points | F10: 0
E11: 50 or more points | F11: 0.1
B12: Part 2. Estimate potential opportunity to free up funds
B13: Percent potential opportunity to free up funds from blended learning and/or online classes, based on Screening Tool score | C13: =(IF(C7<50,F3,IF(C7<75,F4,IF(C7<100,F5,IF(C7<150,F6,IF(C7>149,F7,"")))))) -> 0
B14: Estimated spending on blended learning and/or online classes' teaching positions | C14: =C10*C9 -> 1500000
B15: Estimated potential funds that can be freed up from blended learning and/or online classes | C15: =ROUND(C13*C14, -3) -> 0
B17: Part 3. Assess further potential opportunity to increase the impact of current spending
B18: Percent potential opportunity to increase the impact of current spending on blended learning and/or online classes' teaching positions, based on Screening Tool score | C18: =(IF(C8<50,F10,IF(C8>49,F11,""))) -> 0
B19: Estimated spending on blended learning and/or online classes' teaching positions that can have greater impact | C19: =(C14-C15)*C18 -> 0
B22: Note: (1) Blended learning can look different from district to district. This opportunity focuses on the computer-assisted component(s) of districts' blended learning offerings; (2) This analysis focuses on staffing only. Some districts may have a further opportunity to free up funds from hardware, software, and/or other costs associated with blended learning and/or online classes; (3) Use the average salary for all certified teaching positions, not the average for blended learning or online course staff only
